Workbook

Sheet CONTRATACION ENERO 2020
B1: CEDULA | C1: NOMBRES APELLIDOS CONTRATISTA | D1: # OPS | E1: OBJETO DEL CONTRATO | F1: FECHA INICIO | G1: FECHA TERMINACION | H1: VALOR MENSUAL | I1: VALOR TOTAL | J1: SUPERVISOR | K1: CARGO | L1: CENTRO DE SALUD | M1: CDP | N1: RP | O1: FECHA SECOP LINK SECOP | P1: LINK SECOOP
A2: 1 | B2: 72003862 | C2: GERARDO ARTURO CABALLERO ARIZA | D2: 0001 - 2020 | E2: ABOGADO EXTERNO | F2: 02 ENERO DE 2020 | G2: 31 ENERO DE 2020 | H2: 5800000 | I2: =H2*1 -> 5800000 | J2: ORNELLA FIORENTINO | K2: JEFE OFICINA JURIDICA | L2: CENTRO COSTA HERMOSA | M2: 5 | N2: 5 | O2: 09/01/2020 | P2: https://www.contratos.gov.co/consultas/detalleProceso.do?numConstancia=20-4-10268021
A3: =+A2+1 -> 2 | B3: 7455342 | C3: ADOLFO MARIO DE LA HOZ BERNAL | D3: 0002 - 2020 | E3: MEDICO DE URGENCIA | F3: 02 ENERO DE 2020 | G3: 31 ENERO DE 2020 | H3: 2560000 | I3: 2560000 | J3: BETTY LUX PERTUZ CHARRIS | K3: SUBGERENTE CIENTIFICO | L3: CIUDADELA METROPOLITANA | M3: 6 | N3: 6 | O3: 09/01/2020 | P3: https://www.contratos.gov.co/consultas/detalleProceso.do?numConstancia=20-4-10268054
A4: =+A3+1 -> 3 | B4: 55309225 | C4: ADRIANA BALLESTAS MARTINEZ | D4: 0003 - 2020 | E4: MEDICO DE URGENCIA | F4: 02 ENERO DE 2020 | G4: 31 ENERO DE 2020 | H4: 2560000 | I4: 2560000 | J4: BETTY LUX PERTUZ CHARRIS | K4: SUBGERENTE CIENTIFICO | L4: CENTRO DE 13 DE JUNIO | M4: 7 | N4: 7 | O4: 09/01/2020 | P4: https://www.contratos.gov.co/consultas/detalleProceso.do?numConstancia=20-4-10268065
A5: 4 | B5: 1103109488 | C5: ADRIANA MARCELA CASTAÑO RODELO | D5: 0004 - 2020 | E5: MEDICO CARDIOVASCULAR | F5: 02 ENERO DE 2020 | G5: 31 ENERO DE 2020 | H5: 4420000 | I5: 4420000 | J5: DIANA MARTINEZ PACHECO | K5: COORD CENTRO DE SALUD | L5: CENTRO SALAMANCA | M5: 8 | N5: 8 | O5: 09/01/2020 | P5: https://www.contratos.gov.co/consultas/detalleProceso.do?numConstancia=20-4-10268081
A6: 5 | B6: 22465848 | C6: ADRIANA OROZCO CANTILLO | D6: 0005-2020 | E6: AUXILIAR SERVICIOS GENERALES | F6: 02 ENERO DE 2020 | G6: 31 ENERO DE 2020 | H6: 1215000 | I6: 1215000 | J6: LUIS CARLOS DE LEON BERNIER | K6: COORD CENTRO SALUD | L6: CENTRO MACLOVIA | M6: 9 | N6: 9 | O6: 09/01/2020 | P6: https://www.contratos.gov.co/consultas/detalleProceso.do?numConstancia=20-4-10268092
A7: 6 | B7: 1140895535 | C7: ADRIANA PAOLA GONZALEZ ROMERO | D7: 0006 - 2020 | E7: ENFERMERA JEFE | F7: 02 ENERO DE 2020 | G7: 31 ENERO DE 2020 | H7: 2120000 | I7: 2120000 | J7: BETTY LUX PERTUZ CHARRIS | K7: SUBGERENTE CIENTIFICO | L7: LA ESPERANZA | M7: 10 | N7: 10 | O7: 09/01/2020 | P7: https://www.contratos.gov.co/consultas/detalleProceso.do?numConstancia=20-4-10268105
A8: 7 | B8: 1143437950 | C8: ALBA KARINA ARIAS ESCOBAR | D8: 0007 - 2020 | E8: MEDICO CONSULTA EXTERNA | F8: 02 ENERO DE 2020 | G8: 31 ENERO DE 2020 | H8: 2120000 | I8: 2120000 | J8: LUIS GRANADOS GOMEZ | K8: COORD CENTRO SALUD | L8: CENTRO MANUELA BELTRAN | M8: 11 | N8: 11 | O8: 09/01/2020 | P8: https://www.contratos.gov.co/consultas/detalleProceso.do?numConstancia=20-4-10268112
A9: 8 | B9: 39059528 | C9: ALBA SERNA MEJIA | D9: 0008 - 2020 | E9: AUXILIAR DE ENFERMERIA URGENCIAS | F9: 02 ENERO DE 2020 | G9: 31 ENERO DE 2020 | H9: 1378000 | I9: 1378000 | J9: WILFRAN JIMENEZ DE LA PEÑA | K9: COORD CENTRO SALUD | L9: CIUDADELA METROPOLITANA | M9: 12 | N9: 12 | O9: 09/01/2020 | P9: https://www.contratos.gov.co/consultas/detalleProceso.do?numConstancia=20-4-10268133
A10: 9 | B10: 36555688 | C10: ALBA SOLANO COCA | D10: 0009 - 2020 | E10: ODONTOLOGO | F10: 02 ENERO DE 2020 | G10: 31 ENERO DE 2020 | H10: 1900000 | I10: 1900000 | J10: CARLOS VISBAL JIMENEZ | K10: COORD CENTRO SALUD | L10: CENTRO COSTA HERMOSA | M10: 13 | N10: 13 | O10: 09/01/2020 | P10: https://www.contratos.gov.co/consultas/detalleProceso.do?numConstancia=20-4-10268139
A11: 10 | B11: 1140874429 | C11: ALBERTO DE LA OSSA DE AVILA | D11: 0010 - 2020 | E11: PROFESIONAL DE PRESUPUESTO | F11: 02 ENERO DE 2020 | G11: 31 ENERO DE 2020 | H11: 3500000 | I11: 3500000 | J11: ALFONSO NICOLAS OQUENDO | K11: DIRECTOR FINANCIERO | L11: CENTRO COSTA HERMOSA | M11: 14 | N11: 14 | O11: 09/01/2020 | P11: https://www.contratos.gov.co/consultas/detalleProceso.do?numConstancia=20-4-10268190
A12: 11 | B12: 8505956 | C12: ALBERTO NAVARRO MORALES | D12: 0011 - 2020 | E12: AUXILIAR DE FACTURACION URGENCIA | F12: 02 ENERO DE 2020 | G12: 31 ENERO DE 2020 | H12: 1400000 | I12: 1400000 | J12: SANDRA MILENA SANMARTIN LOPEZ | K12: SUB GERENTE ADMINISTRATIVO | L12: CENTRO COSTA HERMOSA | M12: 15 | N12: 15 | O12: 09/01/2020 | P12: https://www.contratos.gov.co/consultas/detalleProceso.do?numConstancia=20-4-10268203
A13: 12 | B13: 37577926 | C13: ALCIRA CAMPO ALCOZER | D13: 0012 - 2020 | E13: AUXILIAR SERVICIOS GENERALES | F13: 02 ENERO DE 2020 | G13: 31 ENERO DE 2020 | H13: 1215000 | I13: 1215000 | J13: SANDRA MILENA SANMARTIN LOPEZ | K13: SUB GERENTE ADMINISTRATIVO | L13: CENTRO COSTA HERMOSA | M13: 16 | N13: 16 | O13: 09/01/2020 | P13: https://www.contratos.gov.co/consultas/detalleProceso.do?numConstancia=20-4-10268220
A14: 13 | B14: 64543985 | C14: ALCIRA GOMEZ ARRIETA | D14: 0013 - 2020 | E14: ENFERMERA JEFE COORDINADORA PAI | F14: 02 ENERO DE 2020 | G14: 31 ENERO DE 2020 | H14: 4000000 | I14: 4000000 | J14: NILSA ARIZA MARQUEZ | K14: COORDINADOR P Y P | L14: CENTRO MANUELA BELTRAN | M14: 17 | N14: 17 | O14: 09/01/2020 | P14: https://www.contratos.gov.co/consultas/detalleProceso.do?numConstancia=20-4-10268268
A15: 14 | B15: 1045676663 | C15: ALEXANDER MENDOZA DUARTE | D15: 0014 - 2020 | E15: INGENIERO DE HARDWARE Y REDES | F15: 02 ENERO DE 2020 | G15: 31 ENERO DE 2020 | H15: 3000000 | I15: 3000000 | J15: =+J437 -> ZULLI ROMERO | K15: COORDINADOR TIC | L15: CENTRO COSTA HERMOSA | M15: 18 | N15: 18 | O15: 09/01/2020 | P15: https://www.contratos.gov.co/consultas/detalleProceso.do?numConstancia=20-4-10268279
A16: 15 | B16: 22523223 | C16: ALEXANDRA ESTHER MOLINA PEREZ | D16: 0015-2020 | E16: AUXILIAR SERVICIOS GENERALES URGENCIA | F16: 02 ENERO DE 2020 | G16: 31 ENERO DE 2020 | H16: 1378000 | I16: 1378000 | J16: SERGIO BOVEA MARIN | K16: COORD CENTRO SALUD | L16: CENTRO DE 13 DE JUNIO | M16: 19 | N16: 19 | O16: 09/01/2020 | P16: https://www.contratos.gov.co/consultas/detalleProceso.do?numConstancia=20-4-10268295
A17: 16 | B17: 1140881787 | C17: ALEXANDRA GUZMAN QUINTERO | D17: 0016 - 2020 | E17: ASISTENTE OFICINA JURIDICA | F17: 02 ENERO DE 2020 | G17: 31 ENERO DE 2020 | H17: 3000000 | I17: 3000000 | J17: ORNELLA FIORENTINO | K17: JEFE OFICINA JURIDICA | L17: CENTRO COSTA HERMOSA | M17: 20 | N17: 20 | O17: 09/01/2020 | P17: https://www.contratos.gov.co/consultas/detalleProceso.do?numConstancia=20-4-10268319
A18: 17 | B18: 1045716759 | C18: ALFREDO ANGULO JULIAO | D18: 0017 - 2020 | E18: AUXILIAR DE FACTURACION URGENCIA | F18: 02 ENERO DE 2020 | G18: 31 ENERO DE 2020 | H18: 1400000 | I18: 1400000 | J18: SANDRA MILENA SANMARTIN LOPEZ | K18: SUB GERENTE ADMINISTRATIVO | L18: CENTRO COSTA HERMOSA | M18: 21 | N18: 21 | O18: 09/01/2020 | P18: https://www.contratos.gov.co/consultas/detalleProceso.do?numConstancia=20-4-10268336
A19: 18 | B19: 8721508 | C19: ALONSO JOSÉ RIQUETT DE LA HOZ | D19: 0018 - 2020 | E19: MEDICO P Y P | F19: 02 ENERO DE 2020 | G19: 31 ENERO DE 2020 | H19: 2120000 | I19: 2120000 | J19: CARLOS VISBAL JIMENEZ | K19: COORD CENTRO SALUD | L19: CENTRO COSTA HERMOSA | M19: 22 | N19: 22 | O19: 09/01/2020 | P19: https://www.contratos.gov.co/consultas/detalleProceso.do?numConstancia=20-4-10268349
A20: 19 | B20: 8697543 | C20: ALVARO ARENAS GONZALEZ | D20: 0019 - 2020 | E20: MEDICO DE MATERNIDAD | F20: 02 ENERO DE 2020 | G20: 31 ENERO DE 2020 | H20: =4240000+4240000/30*24 -> 7632000 | I20: 7632000 | J20: SERGIO BOVEA MARIN | K20: COORD CENTRO SALUD | L20: CENTRO DE 13 DE JUNIO | M20: 23 | N20: 23 | O20: 09/01/2020 | P20: https://www.contratos.gov.co/consultas/detalleProceso.do?numConstancia=20-4-10268364
A21: 20 | B21: 7407679 | C21: AMEFI PACHECO CERA | D21: 0020 - 2020 | E21: ORIENTADOR | F21: 02 ENERO DE 2020 | G21: 31 ENERO DE 2020 | H21: 1270000 | I21: 1270000 | J21: SANDRA MILENA SANMARTIN LOPEZ | K21: SUB GERENTE ADMINISTRATIVO | L21: La esperanza | M21: 24 | N21: 24 | O21: 09/01/2020 | P21: https://www.contratos.gov.co/consultas/detalleProceso.do?numConstancia=20-4-10268373
A22: 21 | B22: 1047338042 | C22: AMINTA PARDO GUZMAN | D22: 0021 - 2020 | E22: AUXILIAR DE ENFERMERIA CONSULTA EXTERNA | F22: 02 ENERO DE 2020 | G22: 31 ENERO DE 2020 | H22: 1166000 | I22: 1166000 | J22: DIANA MARTINEZ PACHECO | K22: COORD CENTRO DE SALUD | L22: CENTRO SALAMANCA | M22: 25 | N22: 25 | O22: 09/01/2020 | P22: https://www.contratos.gov.co/consultas/detalleProceso.do?numConstancia=20-4-10268381
A23: 22 | B23: 32870174 | C23: SIRLEY PAOLA PEREZ CARMONA | D23: 0022 - 2020 | E23: PROFESIONAL CALIDAD | F23: 02 ENERO DE 2020 | G23: 31 ENERO DE 2020 | H23: 5800000 | I23: 5800000 | J23: BETTY LUX PERTUZ CHARRIS | K23: SUBGERENTE CIENTIFICO | L23: CENTRO COSTA HERMOSA | M23: 26 | N23: 26 | O23: 09/01/2020 | P23: https://www.contratos.gov.co/consultas/detalleProceso.do?numConstancia=20-4-10268400
A24: 23 | B24: 1045688469 | C24: AMY MOVILLA COMAS | D24: 0023 - 2020 | E24: ENFERMERA JEFE CONSULTA EXTERNA | F24: 02 ENERO DE 2020 | G24: 31 ENERO DE 2020 | H24: 2300000 | I24: 2300000 | J24: DIANA MARTINEZ PACHECO | K24: COORD CENTRO DE SALUD | L24: CENTRO SALAMANCA | M24: 27 | N24: 27 | O24: 09/01/2020 | P24: https://www.contratos.gov.co/consultas/detalleProceso.do?numConstancia=20-4-10268416
A25: 24 | B25: 32813366 | C25: ANA GONZALEZ ZAMBRANO | D25: 0024 - 2020 | E25: AUXILIAR DE ARCHIVO | F25: 02 ENERO DE 2020 | G25: 31 ENERO DE 2020 | H25: 1500000 | I25: 1500000 | J25: SANDRA MILENA SANMARTIN LOPEZ | K25: SUB GERENTE ADMINISTRATIVO | L25: ARCHIVO CENTRAL | M25: 28 | N25: 28 | O25: 09/01/2020 | P25: https://www.contratos.gov.co/consultas/detalleProceso.do?numConstancia=20-4-10268428
A26: 25 | B26: 1045704276 | C26: ANA MILENA HERRERA ALVIS | D26: 0025 - 2020 | E26: ENFERMERA JEFE | F26: 02 ENERO DE 2020 | G26: 31 ENERO DE 2020 | H26: 2300000 | I26: 2300000 | J26: NILSA ARIZA MARQUEZ | K26: COORDINADOR P Y P | L26: CENTRO COSTA HERMOSA | M26: 29 | N26: 29 | O26: 09/01/2020 | P26: https://www.contratos.gov.co/consultas/detalleProceso.do?numConstancia=20-4-10268465
A27: 26 | B27: 22739459 | C27: ANA MILENA L´HOESTE ROA | D27: 0026 - 2020 | E27: COORDINADORA CONSULTA EXTERNA | F27: 02 ENERO DE 2020 | G27: 31 ENERO DE 2020 | H27: 3180000 | I27: 3180000 | J27: BETTY LUX PERTUZ CHARRIS | K27: SUBGERENTE CIENTIFICO | L27: CENTRO COSTA HERMOSA | M27: 30 | N27: 30 | O27: 09/01/2020 | P27: https://www.contratos.gov.co/consultas/detalleProceso.do?numConstancia=20-4-10268482
A28: 27 | B28: 32825462 | C28: ANAIS DE JESUS RODRIGUEZ DE DE LAS AGUAS | D28: 0027 - 2020 | E28: AUXILIAR SERVICIOS GENERALES | F28: 02 ENERO DE 2020 | G28: 31 ENERO DE 2020 | H28: 1215000 | I28: 1215000 | J28: DIANA MARTINEZ PACHECO | K28: COORD CENTRO DE SALUD | L28: CENTRO SALAMANCA | M28: 31 | N28: 31 | O28: 09/01/2020 | P28: https://www.contratos.gov.co/consultas/detalleProceso.do?numConstancia=20-4-10268493
A29: 28 | B29: 1045706259 | C29: ANDREA CAROLINA HERRERA ORTEGA | D29: 0028 - 2020 | E29: MEDICO CONSULTA EXTERNA | F29: 02 ENERO DE 2020 | G29: 31 ENERO DE 2020 | H29: 2120000 | I29: 2120000 | J29: LUIS GRANADOS GOMEZ | K29: COORD CENTRO SALUD | L29: CENTRO MANUELA BELTRAN | M29: 32 | N29: 32 | O29: 09/01/2020 | P29: https://www.contratos.gov.co/consultas/detalleProceso.do?numConstancia=20-4-10268527
A30: 29 | B30: 1042443216 | C30: ANDRES ALBERTO GARCIA OSPINO | D30: 0029 - 2020 | E30: AUXILIAR DE FACTURACION URGENCIA | F30: 02 ENERO DE 2020 | G30: 31 ENERO DE 2020 | H30: 1500000 | I30: 1500000 | J30: SANDRA MILENA SANMARTIN LOPEZ | K30: SUB GERENTE ADMINISTRATIVO | L30: ARCHIVO CENTRAL | M30: 33 | N30: 33 | O30: 09/01/2020 | P30: https://www.contratos.gov.co/consultas/detalleProceso.do?numConstancia=20-4-10268544
A31: 30 | B31: 32771752 | C31: ANETHS CECILIA ARGOTE TORRES | D31: 0030 - 2020 | E31: AGENTE CALL CENTER | F31: 02 ENERO DE 2020 | G31: 31 ENERO DE 2020 | H31: 1378000 | I31: 1378000 | J31: BETTY LUX PERTUZ CHARRIS | K31: SUBGERENTE CIENTIFICO | L31: COLL-CENTER- CIUDADELA METROPOLITANA | M31: 34 | N31: 34 | O31: 09/01/2020 | P31: https://www.contratos.gov.co/consultas/detalleProceso.do?numConstancia=20-4-10268567
A32: 31 | B32: 8757791 | C32: ANGEL SANTIAGO MARTINEZ | D32: 0031 - 2020 | E32: ORIENTADOR | F32: 02 ENERO DE 2020 | G32: 31 ENERO DE 2020 | H32: 1270000 | I32: 1270000 | J32: LUIS GRANADOS GOMEZ | K32: COORD CENTRO SALUD | L32: CENTRO MANUELA BELTRAN | M32: 35 | N32: 35 | O32: 09/01/2020 | P32: https://www.contratos.gov.co/consultas/detalleProceso.do?numConstancia=20-4-10268590
A33: 32 | B33: 1047337496 | C33: ANTHONY MIGUEL ORELLANO JIMENEZ | D33: 0032 - 2020 | E33: AUXILIAR DE FACTURACION URGENCIA | F33: 02 ENERO DE 2020 | G33: 31 ENERO DE 2020 | H33: 1400000 | I33: 1400000 | J33: SANDRA MILENA SANMARTIN LOPEZ | K33: SUB GERENTE ADMINISTRATIVO | L33: CENTRO COSTA HERMOSA | M33: 36 | N33: 36 | O33: 09/01/2020 | P33: https://www.contratos.gov.co/consultas/detalleProceso.do?numConstancia=20-4-10268599
A34: 33 | B34: 22736159 | C34: ARACELLY HERNANDEZ GARCIA | D34: 0033 - 2020 | E34: DIGITADOR | F34: 02 ENERO DE 2020 | G34: 31 ENERO DE 2020 | H34: 2500000 | I34: 2500000 | J34: NILSA ARIZA MARQUEZ | K34: COORDINADOR P Y P | L34: CENTRO COSTA HERMOSA | M34: 37 | N34: 37 | O34: 09/01/2020 | P34: https://www.contratos.gov.co/consultas/detalleProceso.do?numConstancia=20-4-10268616
A35: 34 | B35: 32869290 | C35: ARGENEDITH YEPEZ ESCALANTE | D35: 0034 - 2020 | E35: MEDICO P Y P | F35: 02 ENERO DE 2020 | G35: 31 ENERO DE 2020 | H35: 2120000 | I35: 2120000 | J35: LUIS GRANADOS GOMEZ | K35: COORD CENTRO SALUD | L35: CENTRO MANUELA BELTRAN | M35: 38 | N35: 38 | O35: 09/01/2020 | P35: https://www.contratos.gov.co/consultas/detalleProceso.do?numConstancia=20-4-10268630
A36: 35 | B36: 1042444527 | C36: ARNOLD RINCON MARTINEZ | D36: 0035 - 2020 | E36: PROFESIONAL PLANEACION ESTRATEGICA | F36: 02 ENERO DE 2020 | G36: 31 ENERO DE 2020 | H36: 4500000 | I36: 4500000 | J36: SANDRA MILENA SANMARTIN LOPEZ | K36: SUB GERENTE ADMINISTRATIVO | L36: CENTRO COSTA HERMOSA | M36: 39 | N36: 39 | O36: 09/01/2020 | P36: https://www.contratos.gov.co/consultas/detalleProceso.do?numConstancia=20-4-10268644
A37: 36 | B37: 32767778 | C37: BEATRIZ ELENA GUTIERREZ AHUMADA | D37: 0036 - 2020 | E37: PAI WEB | F37: 02 ENERO DE 2020 | G37: 31 ENERO DE 2020 | H37: 1378000 | I37: 1378000 | J37: NILSA ARIZA MARQUEZ | K37: COORDINADOR P Y P | L37: COLL-CENTER- CIUDADELA METROPOLITANA | M37: 40 | N37: 40 | O37: 09/01/2020 | P37: https://www.contratos.gov.co/consultas/detalleProceso.do?numConstancia=20-4-10268653
A38: 37 | B38: 32780077 | C38: BELKIS BOSSIO ESCORCIA | D38: 0037 - 2020 | E38: MEDICO DE URGENCIA | F38: 02 ENERO DE 2020 | G38: 31 ENERO DE 2020 | H38: 2560000 | I38: 2560000 | J38: BETTY LUX PERTUZ CHARRIS | K38: SUBGERENTE CIENTIFICO | L38: CIUDADELA METROPOLITANA | M38: 41 | N38: 41 | O38: 09/01/2020 | P38: https://www.contratos.gov.co/consultas/detalleProceso.do?numConstancia=20-4-10268675
A39: 38 | B39: 32736237 | C39: BETTY ROMERO RODRIGUEZ | D39: 0038 - 2020 | E39: AUXILIAR SERVICIOS GENERALES URGENCIA | F39: 02 ENERO DE 2020 | G39: 31 ENERO DE 2020 | H39: 1378000 | I39: 1378000 | J39: WILFRAN JIMENEZ DE LA PEÑA | K39: COORD CENTRO SALUD | L39: CIUDADELA METROPOLITANA | M39: 42 | N39: 42 | O39: 09/01/2020 | P39: https://www.contratos.gov.co/consultas/detalleProceso.do?numConstancia=20-4-10268691
A40: 39 | B40: 72153271 | C40: BORIS ARROYO ESCOBAR | D40: 0039 - 2020 | E40: ORIENTADOR | F40: 02 ENERO DE 2020 | G40: 31 ENERO DE 2020 | H40: 1270000 | I40: 1270000 | J40: LUIS GRANADOS GOMEZ | K40: COORD CENTRO SALUD | L40: CENTRO MANUELA BELTRAN | M40: 43 | N40: 43 | O40: 09/01/2020 | P40: https://www.contratos.gov.co/consultas/detalleProceso.do?numConstancia=20-4-10268817
A41: 40 | B41: 7938572 | C41: BRAYNERD ALVAREZ JIMENEZ | D41: 0040 - 2020 | E41: MEDICO CONSULTA EXTERNA Y CARDIOVASCULAR | F41: 02 ENERO DE 2020 | G41: 31 ENERO DE 2020 | H41: 4600000 | I41: 4600000 | J41: YARELIS GUERRA CORREA | K41: COORD CENTRO SALUD | L41: CENTRO VILLA ESTADIO | M41: 44 | N41: 44 | O41: 09/01/2020 | P41: https://www.contratos.gov.co/consultas/detalleProceso.do?numConstancia=20-4-10268833
A42: 41 | B42: 1042452163 | C42: BRENDA JULIETH GONZALEZ MEJIA | D42: 0041 -2020 | E42: DIGITADOR | F42: 02 ENERO DE 2020 | G42: 31 ENERO DE 2020 | H42: 1600000 | I42: 1600000 | J42: MARIA SANCHEZ AYALA | K42: JEFE ALMACEN | L42: ALMACEN | M42: 45 | N42: 45 | O42: 09/01/2020 | P42: https://www.contratos.gov.co/consultas/detalleProceso.do?numConstancia=20-4-10268850
A43: 42 | B43: 1001875457 | C43: BRIGGITH CHARRIS ALGARIN | D43: 0042 - 2020 | E43: AUXILIAR DE ODONTOLOGIA | F43: 02 ENERO DE 2020 | G43: 31 ENERO DE 2020 | H43: 1166000 | I43: 1166000 | J43: WILFRAN JIMENEZ DE LA PEÑA | K43: COORD CENTRO SALUD | L43: CIUDADELA METROPOLITANA | M43: 46 | N43: 46 | O43: 09/01/2020 | P43: https://www.contratos.gov.co/consultas/detalleProceso.do?numConstancia=20-4-10268855
A44: 43 | B44: 1042446319 | C44: BRUNYS DEL CARMEN RAMIREZ MUÑOZ | D44: 0043 - 2020 | E44: AUXILIAR DE ENFERMERIA PROMOTORA EN SALUD | F44: 02 ENERO DE 2020 | G44: 31 ENERO DE 2020 | H44: 1215000 | I44: 1215000 | J44: WILFRAN JIMENEZ DE LA PEÑA | K44: COORD CENTRO SALUD | L44: CIUDADELA METROPOLITANA | M44: 47 | N44: 47 | O44: 09/01/2020 | P44: https://www.contratos.gov.co/consultas/detalleProceso.do?numConstancia=20-4-10268867
A45: 44 | B45: 1042449000 | C45: CARLOS ALFREDO MONTERROSA GOMEZ | D45: 0044 - 2020 | E45: PAI WEB | F45: 02 ENERO DE 2020 | G45: 31 ENERO DE 2020 | H45: 1270000 | I45: 1270000 | J45: NILSA ARIZA MARQUEZ | K45: COORDINADOR P Y P | L45: ARCHIVO CENTRAL | M45: 48 | N45: 48 | O45: 09/01/2020 | P45: https://www.contratos.gov.co/consultas/detalleProceso.do?numConstancia=20-4-10268889
A46: 45 | B46: 72238499 | C46: CARLOS ANTONIO MATTOS MIRANDA | D46: 0045 - 2020 | E46: REFERENCIA Y CONTRAREFERENCIA | F46: 02 ENERO DE 2020 | G46: 31 ENERO DE 2020 | H46: 1480000 | I46: 1480000 | J46: SERGIO BOVEA MARIN | K46: COORD CENTRO SALUD | L46: CENTRO DE 13 DE JUNIO | M46: 49 | N46: 49 | O46: 09/01/2020 | P46: https://www.contratos.gov.co/consultas/detalleProceso.do?numConstancia=20-4-10268898
A47: 46 | B47: 44158949 | C47: CARMEN PACHECO VARELA | D47: 0046 - 2020 | E47: AUXILIAR SERVICIOS GENERALES URGENCIA | F47: 02 ENERO DE 2020 | G47: 31 ENERO DE 2020 | H47: 1378000 | I47: 1378000 | J47: SERGIO BOVEA MARIN | K47: COORD CENTRO SALUD | L47: CENTRO DE 13 DE JUNIO | M47: 50 | N47: 50 | O47: 09/01/2020 | P47: https://www.contratos.gov.co/consultas/detalleProceso.do?numConstancia=20-4-10268908
A48: 47 | B48: 32618430 | C48: CARMEN ROBLES DE LASCARRO | D48: 0047 - 2020 | E48: AUXILIAR SERVICIOS GENERALES URGENCIA | F48: 02 ENERO DE 2020 | G48: 31 ENERO DE 2020 | H48: 1378000 | I48: 1378000 | J48: WILFRAN JIMENEZ DE LA PEÑA | K48: COORD CENTRO SALUD | L48: CIUDADELA METROPOLITANA | M48: 51 | N48: 51 | O48: 09/01/2020 | P48: https://www.contratos.gov.co/consultas/detalleProceso.do?numConstancia=20-4-10268924
A49: 48 | B49: 1069489915 | C49: CAROLINA RICARDO ALBA | D49: 0048 - 2020 | E49: AUXILIAR ADMINISTRATIVO - SUBGERENCIA ADMINISTRATIVA | F49: 02 ENERO DE 2020 | G49: 31 ENERO DE 2020 | H49: 1900000 | I49: 1900000 | J49: SANDRA MILENA SANMARTIN LOPEZ | K49: SUB GERENTE ADMINISTRATIVO | L49: COSTA HERMOSA | M49: 52 | N49: 52 | O49: 09/01/2020 | P49: https://www.contratos.gov.co/consultas/detalleProceso.do?numConstancia=20-4-10268993
A50: 49 | B50: 32712485 | C50: CASILDA LARA SOLANO | D50: 0049 - 2020 | E50: MEDICO MATERNIDAD SEGURA | F50: 02 ENERO DE 2020 | G50: 31 ENERO DE 2020 | H50: 2120000 | I50: 2120000 | J50: SERGIO BOVEA MARIN | K50: COORD CENTRO SALUD | L50: CENTRO DE 13 DE JUNIO | M50: 53 | N50: 53 | O50: 09/01/2020 | P50: https://www.contratos.gov.co/consultas/detalleProceso.do?numConstancia=20-4-10269007
A51: 50 | B51: 1143138226 | C51: CATTERINNE ESTEFANY ESTRADA CARDENAS | D51: 0050 - 2020 | E51: AUXILIAR DE FACTURACION URGENCIA | F51: 02 ENERO DE 2020 | G51: 31 ENERO DE 2020 | H51: 1400000 | I51: 1400000 | J51: SANDRA MILENA SANMARTIN LOPEZ | K51: SUB GERENTE ADMINISTRATIVO | L51: CENTRO COSTA HERMOSA | M51: 54 | N51: 54 | O51: 09/01/2020 | P51: https://www.contratos.gov.co/consultas/detalleProceso.do?numConstancia=20-4-10269445
A52: 51 | B52: 8762035 | C52: CESAR AUGUSTO MERIÑO ESCORCIA | D52: 0051 - 2020 | E52: ORIENTADOR | F52: 02 ENERO DE 2020 | G52: 31 ENERO DE 2020 | H52: 1270000 | I52: 1270000 | J52: SANDRA MILENA SANMARTIN LOPEZ | K52: SUB GERENTE ADMINISTRATIVO | L52: CENTRO COSTA HERMOSA | M52: 55 | N52: 55 | O52: 09/01/2020 | P52: https://www.contratos.gov.co/consultas/detalleProceso.do?numConstancia=20-4-10269321
A53: 52 | B53: 1001875491 | C53: CINDY MILENA VARELA ARIAS | D53: 0052 - 2020 | E53: AUXILIAR SERVICIOS GENERALES | F53: 02 ENERO DE 2020 | G53: 31 ENERO DE 2020 | H53: 1215000 | I53: 1215000 | J53: LUIS GRANADOS GOMEZ | K53: COORD CENTRO SALUD | L53: CENTRO MANUELA BELTRAN | M53: 56 | N53: 56 | O53: 09/01/2020 | P53: https://www.contratos.gov.co/consultas/detalleProceso.do?numConstancia=20-4-10269332
A54: 53 | B54: 1143116013 | C54: CLARA MENDOZA BETTER | D54: 0053 - 2020 | E54: PSICOLOGO EN PROMOCION Y PREVENCION | F54: 02 ENERO DE 2020 | G54: 31 ENERO DE 2020 | H54: 2800000 | I54: 2800000 | J54: DIANA MARTINEZ PACHECO | K54: COORD CENTRO DE SALUD | L54: CENTRO SALAMANCA | M54: 57 | N54: 57 | O54: 09/01/2020 | P54: https://www.contratos.gov.co/consultas/detalleProceso.do?numConstancia=20-4-10269351
A55: 54 | B55: 1042418998 | C55: CLAUDIA AREVALO CERVANTES | D55: 0054 - 2020 | E55: ENFERMERA JEFE P Y P | F55: 02 ENERO DE 2020 | G55: 31 ENERO DE 2020 | H55: 2300000 | I55: 2300000 | J55: NILSA ARIZA MARQUEZ | K55: COORDINADOR P Y P | L55: CIUDADELA METROPOLITANA | M55: 58 | N55: 58 | O55: 09/01/2020 | P55: https://www.contratos.gov.co/consultas/detalleProceso.do?numConstancia=20-4-10269351
A56: 55 | B56: 32866058 | C56: CLAUDIA CABARCAS ARROYO | D56: 0055 - 2020 | E56: TRABAJADORA SOCIAL | F56: 02 ENERO DE 2020 | G56: 31 ENERO DE 2020 | H56: 2200000 | I56: 2200000 | J56: DIANA MARTINEZ PACHECO | K56: COORD CENTRO DE SALUD | L56: CENTRO SALAMANCA | M56: 59 | N56: 59 | O56: 09/01/2020 | P56: https://www.contratos.gov.co/consultas/detalleProceso.do?numConstancia=20-4-10269374
A57: 56 | B57: 32749353 | C57: CLAUDIA VALENCIA AGUDELO | D57: 0056 -2020 | E57: AUXILIAR DE ENFERMERIA MATERNIDAD SEGURA | F57: 02 ENERO DE 2020 | G57: 31 ENERO DE 2020 | H57: 1166000 | I57: 1166000 | J57: WILFRAN JIMENEZ DE LA PEÑA | K57: COORD CENTRO SALUD | L57: CIUDADELA METROPOLITANA | M57: 60 | N57: 60 | O57: 09/01/2020 | P57: https://www.contratos.gov.co/consultas/detalleProceso.do?numConstancia=20-4-10269405
A58: 57 | B58: 32818534 | C58: CONSUELO MENDOZA CASTRO | D58: 0057 - 2020 | E58: AUXILIAR DE ENFERMERIA MATERNIDAD SEGURA | F58: 02 ENERO DE 2020 | G58: 31 ENERO DE 2020 | H58: 1166000 | I58: 1166000 | J58: WILFRAN JIMENEZ DE LA PEÑA | K58: COORD CENTRO SALUD | L58: CIUDADELA METROPOLITANA | M58: 61 | N58: 61 | O58: 09/01/2020 | P58: https://www.contratos.gov.co/consultas/detalleProceso.do?numConstancia=20-4-10269414
A59: 58 | B59: 72193875 | C59: CRISTIAN DE JESUS BARRAZA VILLALBA | D59: 0058 - 2020 | E59: CONDUCTOR DE AMBULANCIA | F59: 02 ENERO DE 2020 | G59: 31 ENERO DE 2020 | H59: 1800000 | I59: 1800000 | J59: BETTY LUX PERTUZ CHARRIS | K59: SUBGERENTE CIENTIFICO | L59: CIUDADELA METROPOLITANA | M59: 62 | N59: 62 | O59: 09/01/2020 | P59: https://www.contratos.gov.co/consultas/detalleProceso.do?numConstancia=20-4-10269428
A60: 59 | B60: 22646602 | C60: MARTHA CECILIA PICO OROZCO | D60: 0059 - 2020 | E60: AUXILIAR DE AUTORIZACIONES | F60: 02 ENERO DE 2020 | G60: 31 ENERO DE 2020 | H60: 1378000 | I60: 1378000 | J60: BETTY LUX PERTUZ CHARRIS | K60: SUBGERENTE CIENTIFICO | L60: CIUDADELA METROPOLITANA | M60: 63 | N60: 63 | O60: 09/01/2020 | P60: https://www.contratos.gov.co/consultas/detalleProceso.do?numConstancia=20-4-10269445
A61: 60 | B61: 22477219 | C61: DAMARIS ISABEL GUETTE PAREJA | D61: 0060 - 2020 | E61: REGENTE DE FARMACIA | F61: 02 ENERO DE 2020 | G61: 31 ENERO DE 2020 | H61: 1900000 | I61: 1900000 | J61: BETTY LUX PERTUZ CHARRIS | K61: SUBGERENTE CIENTIFICO | L61: COSTA HERMOSA | M61: 64 | N61: 64 | O61: 09/01/2020 | P61: https://www.contratos.gov.co/consultas/detalleProceso.do?numConstancia=20-4-10269455
A62: 61 | B62: 1007097995 | C62: DANIELA CAROLINA HERNANDEZ OSORIO | D62: 0061 - 2020 | E62: ODONTOLOGO | F62: 02 ENERO DE 2020 | G62: 31 ENERO DE 2020 | H62: 1900000 | I62: 1900000 | J62: WILFRAN JIMENEZ DE LA PEÑA | K62: COORD CENTRO SALUD | L62: CIUDADELA METROPOLITANA | M62: 65 | N62: 65 | O62: 09/01/2020 | P62: https://www.contratos.gov.co/consultas/detalleProceso.do?numConstancia=20-4-10269590
A63: 62 | B63: 72436677 | C63: DANILO ENRIQUE GRAVINI DE LA HOZ | D63: 0062 - 2020 | E63: AUXILIAR DE ENFERMERIA URGENCIAS | F63: 02 ENERO DE 2020 | G63: 31 ENERO DE 2020 | H63: 1378000 | I63: 1378000 | J63: WILFRAN JIMENEZ DE LA PEÑA | K63: COORD CENTRO SALUD | L63: CIUDADELA METROPOLITANA | M63: 66 | N63: 66 | O63: 09/01/2020 | P63: https://www.contratos.gov.co/consultas/detalleProceso.do?numConstancia=20-4-10269973
A64: 63 | B64: 72295422 | C64: DANILO JOSE DE LA VICTORIA CANTILLO | D64: 0063 - 2020 | E64: PSICOLOGO | F64: 02 ENERO DE 2020 | G64: 31 ENERO DE 2020 | H64: 2500000 | I64: 2500000 | J64: BETTY LUX PERTUZ CHARRIS | K64: SUBGERENTE CIENTIFICO | L64: VILLA ESTADIO | M64: 67 | N64: 67 | O64: 09/01/2020 | P64: https://www.contratos.gov.co/consultas/detalleProceso.do?numConstancia=20-4-10270090
A65: 64 | B65: 1042442558 | C65: DANISA PAOLA BARRIOS DE ALBA | D65: 0064 - 2020 | E65: NUTRICIONISTA | F65: 02 ENERO DE 2020 | G65: 31 ENERO DE 2020 | H65: 2300000 | I65: 2300000 | J65: DIANA MARTINEZ PACHECO | K65: COORD CENTRO DE SALUD | L65: CENTRO SALAMANCA | M65: 68 | N65: 68 | O65: 09/01/2020 | P65: https://www.contratos.gov.co/consultas/detalleProceso.do?numConstancia=20-4-10270118
A66: 65 | B66: 1045234352 | C66: DARIANA MARCELA ROMERO CASTELLANOS | D66: 0065 - 2020 | E66: MEDICO MATERNIDAD SEGURA | F66: 02 ENERO DE 2020 | G66: 31 ENERO DE 2020 | H66: 2120000 | I66: =H66*1 -> 2120000 | J66: WILFRAN JIMENEZ DE LA PEÑA | K66: COORD CENTRO SALUD | L66: CIUDADELA METROPOLITANA | M66: 69 | N66: 69 | O66: 09/01/2020 | P66: https://www.contratos.gov.co/consultas/detalleProceso.do?numConstancia=20-4-10270126
A67: 66 | B67: 22642500 | C67: KAREN BETZY MORALES CASTILLO | D67: 0066 - 2020 | E67: PROMOTORA EN SALUD-DENGUE | F67: 02 ENERO DE 2020 | G67: 31 ENERO DE 2020 | H67: 1400000 | I67: 1400000 | J67: BETTY LUX PERTUZ CHARRIS | K67: SUBGERENTE CIENTIFICO | M67: 70 | N67: 70 | O67: 09/01/2020 | P67: https://www.contratos.gov.co/consultas/detalleProceso.do?numConstancia=20-4-10270126
A68: =+A67+1 -> 67 | B68: 44157462 | C68: DAYAN MARTINEZ PACHECO | D68: 0067 - 2020 | E68: ABOGADO EXTERNO | F68: 02 ENERO DE 2020 | G68: 31 ENERO DE 2020 | H68: 5000000 | I68: 5000000 | J68: ORNELLA FIORENTINO | K68: JEFE OFICINA JURIDICA | L68: CENTRO COSTA HERMOSA | M68: 71 | N68: 71 | O68: 09/01/2020 | P68: https://www.contratos.gov.co/consultas/detalleProceso.do?numConstancia=20-4-10270150
A69: 68 | B69: 1143439595 | C69: DAYANA PAOLA OTALORA AMAYA | D69: 0068 - 2020 | E69: PAI WEB | F69: 02 ENERO DE 2020 | G69: 31 ENERO DE 2020 | H69: 1400000 | I69: 1400000 | J69: NILSA ARIZA MARQUEZ | K69: COORDINADOR P Y P | L69: ADMON COSTA HERMOSA | M69: 72 | N69: 72 | O69: 09/01/2020 | P69: https://www.contratos.gov.co/consultas/detalleProceso.do?numConstancia=20-4-10270165
A70: 69 | B70: 1045717077 | C70: DAYANA PAOLA VIDAL CEPEDA | D70: 0069 - 2020 | E70: MEDICO CONSULTA EXTERNA | F70: 02 ENERO DE 2020 | G70: 31 ENERO DE 2020 | H70: =2120000+2120000/30*18 -> 3392000 | I70: 3392000 | J70: BETTY LUX PERTUZ CHARRIS | K70: SUBGERENTE CIENTIFICO | L70: LA ESPERANZA | M70: 73 | N70: 73 | O70: 09/01/2020 | P70: https://www.contratos.gov.co/consultas/detalleProceso.do?numConstancia=20-4-10270185
A71: 70 | B71: 1042436934 | C71: DAYANA TORRES SOLANO | D71: 0070 - 2020 | E71: MEDICO DE URGENCIA | F71: 02 ENERO DE 2020 | G71: 31 ENERO DE 2020 | H71: 5120000 | I71: 5120000 | J71: BETTY LUX PERTUZ CHARRIS | K71: SUBGERENTE CIENTIFICO | L71: CIUDADELA METROPOLITANA | M71: 74 | N71: 74 | O71: 09/01/2020 | P71: https://www.contratos.gov.co/consultas/detalleProceso.do?numConstancia=20-4-10270204
A72: 71 | B72: 1047434688 | C72: DAYRA ALEJANDRA COLON BLANCO | D72: 0071 - 2020 | E72: MEDICO DE URGENCIA | F72: 02 ENERO DE 2020 | G72: 31 ENERO DE 2020 | H72: 2560000 | I72: 2560000 | J72: BETTY LUX PERTUZ CHARRIS | K72: SUBGERENTE CIENTIFICO | L72: CENTRO DE 13 DE JUNIO | M72: 75 | N72: 75 | O72: 09/01/2020 | P72: https://www.contratos.gov.co/consultas/detalleProceso.do?numConstancia=20-4-10270226
A73: 72 | B73: 1042436213 | C73: DESIRET PAOLA PINTO NARVAEZ | D73: 0072 - 2020 | E73: ENFERMERA JEFE URGENCIAS | F73: 02 ENERO DE 2020 | G73: 31 ENERO DE 2020 | H73: 1900000 | I73: 1900000 | J73: BETTY LUX PERTUZ CHARRIS | K73: SUBGERENTE CIENTIFICO | L73: CIUDADELA METROPOLITANA | M73: 76 | N73: 76 | O73: 09/01/2020 | P73: https://www.contratos.gov.co/consultas/detalleProceso.do?numConstancia=20-4-10270271
A74: 73 | B74: 1046814365 | C74: DESIRETH DEL CARMEN DE LEON ATENCIA | D74: 0073 - 2020 | E74: VACUNADORA | F74: 02 ENERO DE 2020 | G74: 31 ENERO DE 2020 | H74: 1400000 | I74: 1400000 | J74: NILSA ARIZA MARQUEZ | K74: COORDINADOR P Y P | L74: CENTRO MANUELA BELTRAN | M74: 77 | N74: 77 | O74: 09/01/2020 | P74: https://www.contratos.gov.co/consultas/detalleProceso.do?numConstancia=20-4-10270295
A75: 74 | B75: 1082405551 | C75: DESIRETH ESTRADA FERNANDEZ | D75: 0074 - 2020 | E75: ENFERMERA JEFE P Y P | F75: 02 ENERO DE 2020 | G75: 31 ENERO DE 2020 | H75: 2300000 | I75: 2300000 | J75: NILSA ARIZA MARQUEZ | K75: COORDINADOR P Y P | L75: 13 DE JUNIO | M75: 78 | N75: 78 | O75: 09/01/2020 | P75: https://www.contratos.gov.co/consultas/detalleProceso.do?numConstancia=20-4-10270352
A76: 75 | B76: 22649995 | C76: DEYLUZ OROZCO CERA | D76: 0075 - 2020 | E76: AUXILIAR DE ARCHIVO | F76: 02 ENERO DE 2020 | G76: 31 ENERO DE 2020 | H76: 1500000 | I76: 1500000 | J76: SANDRA MILENA SANMARTIN LOPEZ | K76: SUB GERENTE ADMINISTRATIVO | L76: ARCHIVO CENTRAL | M76: 79 | N76: 79 | O76: 09/01/2020 | P76: https://www.contratos.gov.co/consultas/detalleProceso.do?numConstancia=20-4-10270385
A77: 76 | B77: 22524112 | C77: DIANA SANDOVAL MANGA | D77: 0076 - 2020 | E77: ENFERMERA JEFE PROGRAMAS ESPECIALES | F77: 02 ENERO DE 2020 | G77: 31 ENERO DE 2020 | H77: 1900000 | I77: 1900000 | J77: LUIS CARLOS DE LEON BERNIER | K77: COORD CENTRO SALUD | L77: CENTRO MACLOVIA | M77: 80 | N77: 80 | O77: 09/01/2020 | P77: https://www.contratos.gov.co/consultas/detalleProceso.do?numConstancia=20-4-10270480
A78: 77 | B78: 1046703551 | C78: DIEGO ARMANDO CASTILLO CALLE | D78: 0077 - 2020 | E78: AUXILIAR DE FACTURACION URGENCIA | F78: 02 ENERO DE 2020 | G78: 31 ENERO DE 2020 | H78: 1400000 | I78: 1400000 | J78: SANDRA MILENA SANMARTIN LOPEZ | K78: SUB GERENTE ADMINISTRATIVO | L78: CENTRO COSTA HERMOSA | M78: 81 | N78: 81 | O78: 09/01/2020 | P78: https://www.contratos.gov.co/consultas/detalleProceso.do?numConstancia=20-4-10270497
A79: 78 | B79: 1052949649 | C79: DILIANA GARCIA JIMENEZ | D79: 0078 -2020 | E79: ENFERMERA JEFE URGENCIAS | F79: 02 ENERO DE 2020 | G79: 31 ENERO DE 2020 | H79: 1900000 | I79: 1900000 | J79: WILFRAN JIMENEZ DE LA PEÑA | K79: COORD CENTRO SALUD | L79: CIUDADELA METROPOLITANA | M79: 82 | N79: 82 | O79: 09/01/2020 | P79: https://www.contratos.gov.co/consultas/detalleProceso.do?numConstancia=20-4-10270525
A80: 79 | B80: 1042420928 | C80: DINA DEL CARMEN CUELLO DONADO | D80: 0079 - 2020 | E80: AUXILIAR DE FACTURACION URGENCIA | F80: 02 ENERO DE 2020 | G80: 31 ENERO DE 2020 | H80: 1400000 | I80: 1400000 | J80: WILFRAN JIMENEZ DE LA PEÑA | K80: COORD CENTRO SALUD | L80: CENTRO COSTA HERMOSA | M80: 83 | N80: 83 | O80: 09/01/2020 | P80: https://www.contratos.gov.co/consultas/detalleProceso.do?numConstancia=20-4-10270543
A81: 80 | B81: 32818082 | C81: DIVINA LUZ NIETO ZAMBRANO | D81: 0080 - 2020 | E81: AUXILIAR SERVICIOS GENERALES URGENCIA | F81: 02 ENERO DE 2020 | G81: 31 ENERO DE 2020 | H81: 1378000 | I81: 1378000 | J81: SERGIO BOVEA MARIN | K81: COORD CENTRO SALUD | L81: CENTRO DE 13 DE JUNIO | M81: 84 | N81: 84 | O81: 09/01/2020 | P81: https://www.contratos.gov.co/consultas/detalleProceso.do?numConstancia=20-4-10270574
A82: 81 | B82: 32819600 | C82: DOLIS PEDROZO TORRES | D82: 0081 - 2020 | E82: AUXILIAR SERVICIOS GENERALES | F82: 02 ENERO DE 2020 | G82: 31 ENERO DE 2020 | H82: 1215000 | I82: 1215000 | J82: LUIS GRANADOS GOMEZ | K82: COORD CENTRO SALUD | L82: CENTRO MANUELA BELTRAN | M82: 85 | N82: 85 | O82: 09/01/2020 | P82: https://www.contratos.gov.co/consultas/detalleProceso.do?numConstancia=20-4-10270601
A83: 82 | B83: 1043142073 | C83: DORALIZ ECHEVERRI PEREZ | D83: 0082 - 2020 | E83: GESTION DOCUMENTAL | F83: 02 ENERO DE 2020 | G83: 31 ENERO DE 2020 | H83: 1500000 | I83: 1500000 | J83: FABIAN COLPAS | K83: JEFE TALENTO HUMANO | L83: CENTRO COSTA HERMOSA | M83: 86 | N83: 86 | O83: 09/01/2020 | P83: https://www.contratos.gov.co/consultas/detalleProceso.do?numConstancia=20-4-10270912
A84: 83 | B84: 32769312 | C84: DORIS PADILLA MOLINA | D84: 0083 - 2020 | E84: AUXILIAR DE ODONTOLOGIA | F84: 02 ENERO DE 2020 | G84: 31 ENERO DE 2020 | H84: 1166000 | I84: 1166000 | J84: BETTY LUX PERTUZ CHARRIS | K84: SUBGERENTE CIENTIFICO | L84: CENTRO DE SALUD EL PARQUE | M84: 87 | N84: 87 | O84: 09/01/2020 | P84: https://www.contratos.gov.co/consultas/detalleProceso.do?numConstancia=20-4-10270936
A85: 84 | B85: 55222167 | C85: DREY FLOREZ TORRES | D85: 0084 - 2020 | E85: PAI WEB | F85: 02 ENERO DE 2020 | G85: 31 ENERO DE 2020 | H85: 1500000 | I85: 1500000 | J85: NILSA ARIZA MARQUEZ | K85: COORDINADOR P Y P | L85: ARCHIVO CENTRAL | M85: 88 | N85: 88 | O85: 09/01/2020 | P85: https://www.contratos.gov.co/consultas/detalleProceso.do?numConstancia=20-4-10270957
A86: 85 | B86: 1143235752 | C86: DUYARLY MARIA TOLOZA MAZO | D86: 0085 - 2020 | E86: AUXILIAR DE ENFERMERIA CONSULTA EXTERNA | F86: 02 ENERO DE 2020 | G86: 31 ENERO DE 2020 | H86: 1166000 | I86: 1166000 | J86: YARELIS GUERRA CORREA | K86: COORD CENTRO SALUD | L86: CENTRO VILLA ESTADIO | M86: 89 | N86: 89 | O86: 09/01/2020 | P86: https://www.contratos.gov.co/consultas/detalleProceso.do?numConstancia=20-4-10270978
A87: 86 | B87: 8735248 | C87: EDGAR CERVANTES MELGAREJO | D87: 0086 - 2020 | E87: MEDICO P Y P | F87: 02 ENERO DE 2020 | G87: 31 ENERO DE 2020 | H87: 2120000 | I87: 2120000 | J87: WILFRAN JIMENEZ DE LA PEÑA | K87: COORD CENTRO SALUD | L87: CIUDADELA METROPOLITANA | M87: 90 | N87: 90 | O87: 09/01/2020 | P87: https://www.contratos.gov.co/consultas/detalleProceso.do?numConstancia=20-4-10271038
A88: 87 | B88: 78302933 | C88: EDIE JAIR GIL | D88: 0087 - 2020 | E88: TECNOLOGO EN RADIOLOGIA | F88: 02 ENERO DE 2020 | G88: 31 ENERO DE 2020 | H88: 1500000 | I88: 1500000 | J88: WILFRAN JIMENEZ DE LA PEÑA | K88: COORD CENTRO SALUD | L88: CIUDADELA METROPOLITANA | M88: 91 | N88: 91 | O88: 09/01/2020 | P88: https://www.contratos.gov.co/consultas/detalleProceso.do?numConstancia=20-4-10271088
A89: 88 | B89: 1045700355 | C89: EDUARDO LUIS PAUTH HERNANDEZ | D89: 0088 - 2020 | E89: MEDICO CONSULTA EXTERNA | F89: 02 ENERO DE 2020 | G89: 31 ENERO DE 2020 | H89: 2120000 | I89: 2120000 | J89: BETTY LUX PERTUZ CHARRIS | K89: SUBGERENTE CIENTIFICO | L89: EL PARQUE | M89: 92 | N89: 92 | O89: 09/01/2020 | P89: https://www.contratos.gov.co/consultas/detalleProceso.do?numConstancia=20-4-10271153
A90: 89 | B90: 32708896 | C90: EDUVIGES LUCILA ORTEGA VIZCAINO | D90: 0089 - 2020 | E90: AUXILIAR DE ENFERMERIA URGENCIAS | F90: 02 ENERO DE 2020 | G90: 31 ENERO DE 2020 | H90: 1378000 | I90: 1378000 | J90: WILFRAN JIMENEZ DE LA PEÑA | K90: COORD CENTRO SALUD | L90: CIUDADELA METROPOLITANA | M90: 93 | N90: 93 | O90: 09/01/2020 | P90: https://www.contratos.gov.co/consultas/detalleProceso.do?numConstancia=20-4-10274012
A91: 90 | B91: 8734956 | C91: EFRAIN CANTILLO GUERRERO | D91: 0090 - 2020 | E91: CONDUCTOR DE AMBULANCIA | F91: 02 ENERO DE 2020 | G91: 31 ENERO DE 2020 | H91: 1800000 | I91: 1800000 | J91: BETTY LUX PERTUZ CHARRIS | K91: SUBGERENTE CIENTIFICO | L91: CENTRO DE 13 DE JUNIO | M91: 94 | N91: 94 | O91: 09/01/2020 | P91: https://www.contratos.gov.co/consultas/detalleProceso.do?numConstancia=20-4-10274030
A92: 91 | B92: 8750161 | C92: EFRAIN DE LA HOZ ROCHEL | D92: 0091 - 2020 | E92: MEDICO DE URGENCIA | F92: 02 ENERO DE 2020 | G92: 31 ENERO DE 2020 | H92: 2560000 | I92: 2560000 | J92: BETTY LUX PERTUZ CHARRIS | K92: SUBGERENTE CIENTIFICO | L92: CENTRO DE 13 DE JUNIO | M92: 95 | N92: 95 | O92: 09/01/2020 | P92: https://www.contratos.gov.co/consultas/detalleProceso.do?numConstancia=20-4-10274040
A93: 92 | B93: 1045675420 | C93: EIBANIA MOLINA VENERA | D93: 0092 - 2020 | E93: AUXILIAR DE ENFERMERIA URGENCIAS | F93: 02 ENERO DE 2020 | G93: 31 ENERO DE 2020 | H93: 1378000 | I93: 1378000 | J93: WILFRAN JIMENEZ DE LA PEÑA | K93: COORD CENTRO SALUD | L93: CIUDADELA METROPOLITANA | M93: 96 | N93: 96 | O93: 09/01/2020 | P93: https://www.contratos.gov.co/consultas/detalleProceso.do?numConstancia=20-4-10274055
A94: 93 | B94: 32651025 | C94: ELEISE SINING CUJIA | D94: 0093 - 2020 | E94: GESTION DOCUMENTAL | F94: 02 ENERO DE 2020 | G94: 31 ENERO DE 2020 | H94: 1500000 | I94: 1500000 | J94: FABIAN COLPAS | K94: JEFE TALENTO HUMANO | L94: CENTRO COSTA HERMOSA | M94: 97 | N94: 97 | O94: 09/01/2020 | P94: https://www.contratos.gov.co/consultas/detalleProceso.do?numConstancia=20-4-10274079
A95: 94 | B95: 22570149 | C95: ELENA BAENA PEÑA | D95: 0094 - 2020 | E95: AUXILIAR DE FACTURACION URGENCIA | F95: 02 ENERO DE 2020 | G95: 31 ENERO DE 2020 | H95: 1400000 | I95: 1400000 | J95: SANDRA MILENA SANMARTIN LOPEZ | K95: SUB GERENTE ADMINISTRATIVO | L95: CENTRO COSTA HERMOSA | M95: 98 | N95: 98 | O95: 09/01/2020 | P95: https://www.contratos.gov.co/consultas/detalleProceso.do?numConstancia=20-4-10280707
A96: 95 | B96: 32772038 | C96: ELIANA BEATRIZ ABRIL DE LA ROSA | D96: 0095 - 2020 | E96: AUXILIAR ADMINISTRATIVO - RECURSOS HUMANOS | F96: 02 ENERO DE 2020 | G96: 31 ENERO DE 2020 | H96: 1900000 | I96: 1900000 | J96: FABIAN COLPAS | K96: JEFE TALENTO HUMANO | L96: CENTRO COSTA HERMOSA | M96: 99 | N96: 99 | O96: 09/01/2020 | P96: https://www.contratos.gov.co/consultas/detalleProceso.do?numConstancia=20-4-10280736
A97: 96 | B97: 32787164 | C97: ELIANA CONSTANZA ARTETA HOYOS | D97: 0096 - 2020 | E97: CONTADOR | F97: 02 ENERO DE 2020 | G97: 31 ENERO DE 2020 | H97: 4000000 | I97: 4000000 | J97: SANDRA MILENA SANMARTIN LOPEZ | K97: SUB GERENTE ADMINISTRATIVO | L97: CENTRO COSTA HERMOSA | M97: 100 | N97: 100 | O97: 09/01/2020 | P97: https://www.contratos.gov.co/consultas/detalleProceso.do?numConstancia=20-4-10280753
A98: 97 | B98: 8762665 | C98: ELIECER DE JESUS CALLE QUINTERO | D98: 0097 - 2020 | E98: TECNICO ALMACEN | F98: 02 ENERO DE 2020 | G98: 31 ENERO DE 2020 | H98: 1900000 | I98: 1900000 | J98: MARIA SANCHEZ AYALA | K98: JEFE ALMACEN | L98: ALMACEN | M98: 101 | N98: 101 | O98: 09/01/2020 | P98: https://www.contratos.gov.co/consultas/detalleProceso.do?numConstancia=20-4-10280770
A99: 98 | B99: 8633055 | C99: ELIECER POLO CASTRO | D99: 0098 - 2020 | E99: ABOGADO EXTERNO | F99: 02 ENERO DE 2020 | G99: 31 ENERO DE 2020 | H99: 5800000 | I99: 5800000 | J99: ORNELLA FIORENTINO | K99: JEFE OFICINA JURIDICA | L99: CENTRO COSTA HERMOSA | M99: 102 | N99: 102 | O99: 09/01/2020 | P99: https://www.contratos.gov.co/consultas/detalleProceso.do?numConstancia=20-4-10280783
A100: 99 | B100: 32871139 | C100: ELLA VIZCAINO SENIOR | D100: 0099 - 2020 | E100: ENFERMERA JEFE | F100: 02 ENERO DE 2020 | G100: 31 ENERO DE 2020 | H100: 2300000 | I100: 2300000 | J100: NILSA ARIZA MARQUEZ | K100: COORDINADOR P Y P | L100: CIUDADELA METROPOLITANA | M100: 103 | N100: 103 | O100: 09/01/2020 | P100: https://www.contratos.gov.co/consultas/detalleProceso.do?numConstancia=20-4-10280839
A101: 100 | B101: 72170268 | C101: FABIAN FERNANDO MERCADO | D101: 0100 - 2020 | E101: PAI WEB | F101: 02 ENERO DE 2020 | G101: 31 ENERO DE 2020 | H101: 1270000 | I101: 1270000 | J101: NILSA ARIZA MARQUEZ | K101: COORDINADOR P Y P | L101: ARCHIVO CENTRAL | M101: 104 | N101: 104 | O101: 09/01/2020 | P101: https://www.contratos.gov.co/consultas/detalleProceso.do?numConstancia=20-4-10280909
A102: 101 | B102: 72132608 | C102: MARCO AURELIO CASTRO CAICEDO | D102: 0101 - 2020 | E102: AUXILIAR DE FACTURACION URGENCIA | F102: 02 ENERO DE 2020 | G102: 31 ENERO DE 2020 | H102: 1400000 | I102: 1400000 | J102: SANDRA MILENA SANMARTIN LOPEZ | K102: SUB GERENTE ADMINISTRATIVO | L102: CENTRO COSTA HERMOSA | M102: 105 | N102: 105 | O102: 09/01/2020 | P102: https://www.contratos.gov.co/consultas/detalleProceso.do?numConstancia=20-4-10280924
A103: 102 | B103: 1042436156 | C103: EMELY ESCORCIA MARTINEZ | D103: 0102 - 2020 | E103: ENFERMERA JEFE URGENCIAS | F103: 02 ENERO DE 2020 | G103: 31 ENERO DE 2020 | H103: 1900000 | I103: 1900000 | J103: SERGIO BOVEA MARIN | K103: COORD CENTRO SALUD | L103: CENTRO DE 13 DE JUNIO | M103: 106 | N103: 106 | O103: 09/01/2020 | P103: https://www.contratos.gov.co/consultas/detalleProceso.do?numConstancia=20-4-10280950
A104: 103 | B104: 22693401 | C104: EMILIA ANTONIA BARCELO DE PARRA | D104: 0103 - 2020 | E104: AUXILIAR SERVICIOS GENERALES URGENCIA | F104: 02 ENERO DE 2020 | G104: 31 ENERO DE 2020 | H104: 1378000 | I104: 1378000 | J104: SERGIO BOVEA MARIN | K104: COORD CENTRO SALUD | L104: CENTRO DE 13 DE JUNIO | M104: 107 | N104: 107 | O104: 09/01/2020 | P104: https://www.contratos.gov.co/consultas/detalleProceso.do?numConstancia=20-4-10280956
A105: 104 | B105: 1140831753 | C105: ENNY CAROLINA ROCHA HERNANDEZ | D105: 0104 - 2020 | E105: ABOGADO EXTERNO | F105: 02 ENERO DE 2020 | G105: 31 ENERO DE 2020 | H105: 5000000 | I105: 5000000 | J105: ORNELLA FIORENTINO | K105: JEFE OFICINA JURIDICA | L105: CENTRO COSTA HERMOSA | M105: 108 | N105: 108 | O105: 09/01/2020 | P105: https://www.contratos.gov.co/consultas/detalleProceso.do?numConstancia=20-4-10280969
A106: 105 | B106: 8718276 | C106: ENRIQUE PACHECO PACHECO | D106: 0105 - 2020 | E106: MEDICO DE URGENCIA | F106: 02 ENERO DE 2020 | G106: 31 ENERO DE 2020 | H106: 2560000 | I106: 2560000 | J106: BETTY LUX PERTUZ CHARRIS | K106: SUBGERENTE CIENTIFICO | L106: CENTRO DE 13 DE JUNIO | M106: 109 | N106: 109 | O106: 09/01/2020 | P106: https://www.contratos.gov.co/consultas/detalleProceso.do?numConstancia=20-4-10280964
A107: 106 | B107: 32866006 | C107: ERIKA ASCENCIO MARQUEZ | D107: 0106 - 2020 | E107: AUXILIAR ADMINISTRATIVO -CONTRATACION | F107: 02 ENERO DE 2020 | G107: 31 ENERO DE 2020 | H107: 3500000 | I107: 3500000 | J107: ORNELLA FIORENTINO | K107: JEFE OFICINA JURIDICA | L107: CENTRO COSTA HERMOSA | M107: 110 | N107: 110 | O107: 09/01/2020 | P107: https://www.contratos.gov.co/consultas/detalleProceso.do?numConstancia=20-4-10280967
A108: 107 | B108: 1143147791 | C108: ERNESTO JUNIOR ROJANO MEZA | D108: 0107 - 2020 | E108: TECNOLOGO EN RADIOLOGIA | F108: 02 ENERO DE 2020 | G108: 31 ENERO DE 2020 | H108: 1500000 | I108: 1500000 | J108: WILFRAN JIMENEZ DE LA PEÑA | K108: COORD CENTRO SALUD | L108: CIUDADELA METROPOLITANA | M108: 111 | N108: 111 | O108: 09/01/2020 | P108: https://www.contratos.gov.co/consultas/detalleProceso.do?numConstancia=20-4-10280968
A109: 108 | B109: 1052970236 | C109: ESKARLY MARIA ACOSTA ALVARADO | D109: 0108 - 2020 | E109: PSICOLOGO | F109: 02 ENERO DE 2020 | G109: 31 ENERO DE 2020 | H109: 4000000 | I109: 4000000 | J109: FABIAN COLPAS | K109: JEFE TALENTO HUMANO | L109: CENTRO COSTA HERMOSA | M109: 112 | N109: 112 | O109: 09/01/2020 | P109: https://www.contratos.gov.co/consultas/detalleProceso.do?numConstancia=20-4-10281019
A110: 109 | B110: 22467133 | C110: ESMERALDA COTE BORNACELY | D110: 0109 - 2020 | E110: VACUNADORA | F110: 02 ENERO DE 2020 | G110: 31 ENERO DE 2020 | H110: 1400000 | I110: 1400000 | J110: NILSA ARIZA MARQUEZ | K110: COORDINADOR P Y P | L110: CENTRO MANUELA BELTRAN | M110: 113 | N110: 113 | O110: 09/01/2020 | P110: https://www.contratos.gov.co/consultas/detalleProceso.do?numConstancia=20-4-10281014
A111: 110 | B111: 22732766 | C111: ESMIRIS MARIA JIMENEZ GOMEZ | D111: 0110 - 2020 | E111: AUXILIAR SERVICIOS GENERALES | F111: 02 ENERO DE 2020 | G111: 31 ENERO DE 2020 | H111: 1215000 | I111: 1215000 | J111: YARELIS GUERRA CORREA | K111: COORD CENTRO SALUD | L111: CENTRO COSTA HERMOSA | M111: 114 | N111: 114 | O111: 09/01/2020 | P111: https://www.contratos.gov.co/consultas/detalleProceso.do?numConstancia=20-4-10281016
A112: 111 | B112: 32821813 | C112: ESPERANZA OROZCO MORENO | D112: 0111 - 2020 | E112: AUXILIAR DE ENFERMERIA URGENCIAS | F112: 02 ENERO DE 2020 | G112: 31 ENERO DE 2020 | H112: 1378000 | I112: 1378000 | J112: SERGIO BOVEA MARIN | K112: COORD CENTRO SALUD | L112: CENTRO DE 13 DE JUNIO | M112: 115 | N112: 115 | O112: 09/01/2020 | P112: https://www.contratos.gov.co/consultas/detalleProceso.do?numConstancia=20-4-10281017
A113: 112 | B113: 44157204 | C113: ESTHER CECILIA SOLANO BARROS | D113: 0112 - 2020 | E113: MEDICO DE URGENCIA | F113: 02 ENERO DE 2020 | G113: 31 ENERO DE 2020 | H113: 2560000 | I113: 2560000 | J113: BETTY LUX PERTUZ CHARRIS | K113: SUBGERENTE CIENTIFICO | L113: CIUDADELA METROPOLITANA | M113: 116 | N113: 116 | O113: 09/01/2020 | P113: https://www.contratos.gov.co/consultas/detalleProceso.do?numConstancia=20-4-10281018
A114: 113 | B114: 44150678 | C114: EUCARIS DEL CARMEN RAMBAO NIEBLES | D114: 0113 - 2020 | E114: MEDICO CONSULTA EXTERNA | F114: 02 ENERO DE 2020 | G114: 31 ENERO DE 2020 | H114: 2120000 | I114: 2120000 | J114: BETTY LUX PERTUZ CHARRIS | K114: SUBGERENTE CIENTIFICO | L114: CENTRO EL PARQUE | M114: 117 | N114: 117 | O114: 09/01/2020 | P114: https://www.contratos.gov.co/consultas/detalleProceso.do?numConstancia=20-4-10281075
A115: 114 | B115: 60311278 | C115: EVA FLOREZ PARRA | D115: 0114 - 2020 | E115: MÉDICO CONSULTA EXTERNA Y APOYO A LA COORDINACIÓN MÉDICA | F115: 02 ENERO DE 2020 | G115: 31 ENERO DE 2020 | H115: 4640000 | I115: 4640000 | J115: BETTY LUX PERTUZ CHARRIS | K115: SUBGERENTE CIENTIFICO | L115: la esperanza | M115: 118 | N115: 118 | O115: 09/01/2020 | P115: https://www.contratos.gov.co/consultas/detalleProceso.do?numConstancia
A116: 115 | B116: 32583911 | C116: EVA ISABEL ROSALES NAVARRO | D116: 0115 - 2020 | E116: ASESOR GERENCIA | F116: 02 ENERO DE 2020 | G116: 31 ENERO DE 2020 | H116: 5500000 | I116: 5500000 | J116: ROSA MADERA | K116: GERENTE | L116: CENTRO COSTA HERMOSA | M116: 119 | N116: 119 | O116: 09/01/2020 | P116: https://www.contratos.gov.co/consultas/detalleProceso.do?numConstancia=20-4-10281077
A117: 116 | B117: 1074712390 | C117: EVELIN CRISTINA ZULETA SANCHEZ | D117: 0116 - 2020 | E117: ENFERMERA JEFE P Y P | F117: 02 ENERO DE 2020 | G117: 31 ENERO DE 2020 | H117: 2300000 | I117: 2300000 | J117: NILSA ARIZA MARQUEZ | K117: COORDINADOR P Y P | L117: MANUELA BELTRAN | M117: 120 | N117: 120 | O117: 09/01/2020 | P117: https://www.contratos.gov.co/consultas/detalleProceso.do?numConstancia=20-4-10281078
A118: 117 | B118: 45496113 | C118: BEATRIZ HELENA JIMENO CARDENAS | D118: 0117 - 2020 | E118: AUXILIAR DE ARCHIVO | F118: 02 ENERO DE 2020 | G118: 31 ENERO DE 2020 | H118: 1500000 | I118: 1500000 | J118: SANDRA MILENA SANMARTIN LOPEZ | K118: SUB GERENTE ADMINISTRATIVO | L118: CENTRO MANUELA BELTRAN | M118: 121 | N118: 121 | O118: 09/01/2020 | P118: https://www.contratos.gov.co/consultas/detalleProceso.do?numConstancia=20-4-10281174
A119: 118 | B119: 1129516135 | C119: EYLEEN GUTIERREZ BARRERA | D119: 0118 - 2020 | E119: MEDICO CONSULTA EXTERNA | F119: 02 ENERO DE 2020 | G119: 31 ENERO DE 2020 | H119: 2120000 | I119: 2120000 | J119: CARLOS VISBAL JIMENEZ | K119: COORD CENTRO SALUD | L119: CENTRO COSTA HERMOSA | M119: 122 | N119: 122 | O119: 09/01/2020 | P119: https://www.contratos.gov.co/consultas/detalleProceso.do?numConstancia=20-4-10281080
A120: 119 | B120: 72270286 | C120: FABIAN ENRIQUE CASTELLANOS GARCIA | D120: 0119 - 2020 | E120: PROFESIONAL DE PRESUPUESTO | F120: 02 ENERO DE 2020 | G120: 31 ENERO DE 2020 | H120: 4500000 | I120: 4500000 | J120: ALFONSO NICOLAS OQUENDO | K120: DIRECTOR FINANCIERO | L120: CENTRO COSTA HERMOSA | M120: 123 | N120: 123 | O120: 09/01/2020 | P120: https://www.contratos.gov.co/consultas/detalleProceso.do?numConstancia=20-4-10281081
A121: 120 | B121: 8705578 | C121: FERMIN NAVARRO STEFANELL | D121: 0120 - 2020 | E121: GINECOLOGO | F121: 02 ENERO DE 2020 | G121: 31 ENERO DE 2020 | H121: 7500000 | I121: 7500000 | J121: NILSA ARIZA MARQUEZ | K121: COORDINADOR P Y P | L121: 13 DE JUNIO Y CIUDADELA | M121: 124 | N121: 124 | O121: 09/01/2020 | P121: https://www.contratos.gov.co/consultas/detalleProceso.do?numConstancia=20-4-10281082
A122: 121 | B122: 1129520650 | C122: FERNANDO LUIS CERA DIAZ | D122: 0121 - 2020 | E122: MEDICO DE URGENCIA | F122: 02 ENERO DE 2020 | G122: 31 ENERO DE 2020 | H122: 2560000 | I122: 2560000 | J122: WILFRAN JIMENEZ DE LA PEÑA | K122: COORD CENTRO SALUD | L122: CIUDADELA METROPOLITANA | M122: 125 | N122: 125 | O122: 09/01/2020 | P122: https://www.contratos.gov.co/consultas/detalleProceso.do?numConstancia=20-4-10281189
A123: 122 | B123: 44159527 | C123: FLORINDA DE LA HOZ PACHECO | D123: 0122 - 2020 | E123: ENFERMERA JEFE P Y P | F123: 02 ENERO DE 2020 | G123: 31 ENERO DE 2020 | H123: 2300000 | I123: 2300000 | J123: NILSA ARIZA MARQUEZ | K123: COORDINADOR P Y P | L123: VILLA ESTADIO | M123: 126 | N123: 126 | O123: 09/01/2020 | P123: https://www.contratos.gov.co/consultas/detalleProceso.do?numConstancia=20-4-10281178
A124: 123 | B124: 8507198 | C124: FRANCISCO PEÑALOZA PEREZ | D124: 0123 - 2020 | E124: MEDICO CONSULTA EXTERNA | F124: 02 ENERO DE 2020 | G124: 31 ENERO DE 2020 | H124: 2120000 | I124: 2120000 | J124: BETTY LUX PERTUZ CHARRIS | K124: SUBGERENTE CIENTIFICO | L124: CENTRO EL PARQUE | M124: 127 | N124: 127 | O124: 09/01/2020 | P124: https://www.contratos.gov.co/consultas/detalleProceso.do?numConstancia=20-4-10281179
A125: 124 | B125: 1042449540 | C125: FREDDY JESUS MAESTRE FERNANDEZ | D125: 0124 - 2020 | E125: AUXILIAR DE FACTURACION URGENCIA | F125: 02 ENERO DE 2020 | G125: 31 ENERO DE 2020 | H125: 1400000 | I125: 1400000 | J125: LUIS GRANADOS GOMEZ | K125: COORD CENTRO SALUD | L125: UNIDAD AMIGABLE MANUELA BELTRAN | M125: 128 | N125: 128 | O125: 09/01/2020 | P125: https://www.contratos.gov.co/consultas/detalleProceso.do?numConstancia=20-4-10281180
A126: 125 | B126: 9132998 | C126: GABRIEL ARIAS RAMIREZ | D126: 0125 - 2020 | E126: QUIMICO FARMACEUTICO | F126: 02 ENERO DE 2020 | G126: 31 ENERO DE 2020 | H126: 3000000 | I126: 3000000 | J126: BETTY LUX PERTUZ CHARRIS | K126: SUBGERENTE CIENTIFICO | L126: ADMON -FARMACIA | M126: 129 | N126: 129 | O126: 09/01/2020 | P126: https://www.contratos.gov.co/consultas/detalleProceso.do?numConstancia=20-4-10281184
A127: 126 | B127: 32756610 | C127: GENNY GUZMAN NAVARRO | D127: 0126 - 2020 | E127: MEDICO DE URGENCIA | F127: 02 ENERO DE 2020 | G127: 31 ENERO DE 2020 | H127: 2560000 | I127: 2560000 | J127: BETTY LUX PERTUZ CHARRIS | K127: SUBGERENTE CIENTIFICO | L127: CIUDADELA METROPOLITANA | M127: 130 | N127: 130 | O127: 09/01/2020 | P127: https://www.contratos.gov.co/consultas/detalleProceso.do?numConstancia=20-4-10281185
A128: 127 | B128: 1140858071 | C128: MARIA LUISA FERNANDA ARAGON NIGRINI | D128: 0127 - 2020 | E128: ABOGADO EXTERNO | F128: 02 ENERO DE 2020 | G128: 31 ENERO DE 2020 | H128: 5800000 | I128: 5800000 | J128: ORNELLA FIORENTINO | K128: JEFE OFICINA JURIDICA | L128: CENTRO COSTA HERMOSA | M128: 131 | N128: 131 | O128: 09/01/2020 | P128: https://www.contratos.gov.co/consultas/detalleProceso.do?numConstancia=20-4-10281186
A129: 128 | B129: 1042448518 | C129: GIANINA ANDREA GRAVINI DE LA HOZ | D129: 0128 - 2020 | E129: MEDICO DE URGENCIA | F129: 02 ENERO DE 2020 | G129: 31 ENERO DE 2020 | H129: 2560000 | I129: 2560000 | J129: BETTY LUX PERTUZ CHARRIS | K129: SUBGERENTE CIENTIFICO | L129: CENTRO DE 13 DE JUNIO | M129: 132 | N129: 132 | O129: 09/01/2020 | P129: https://www.contratos.gov.co/consultas/detalleProceso.do?numConstancia=20-4-10281187
A130: 129 | B130: 1143442107 | C130: GIANNINA HERNANDEZ CONTRERAS | D130: 0129 - 2020 | E130: AUXILIAR DE ODONTOLOGIA | F130: 02 ENERO DE 2020 | G130: 31 ENERO DE 2020 | H130: 1166000 | I130: =H130*1 -> 1166000 | J130: WILFRAN JIMENEZ DE LA PEÑA | K130: COORD CENTRO SALUD | L130: CIUDADELA METROPOLITANA | M130: 133 | N130: 133 | O130: 09/01/2020 | P130: https://www.contratos.gov.co/consultas/detalleProceso.do?numConstancia=20-4-10281256
A131: 130 | B131: 1043133060 | C131: GINNA AGUILAR ANDRADE | D131: 0130 - 2020 | E131: AUXILIAR DE ENFERMERIA URGENCIAS | F131: 02 ENERO DE 2020 | G131: 31 ENERO DE 2020 | H131: 1378000 | I131: 1378000 | J131: SERGIO BOVEA MARIN | K131: COORD CENTRO SALUD | L131: CENTRO DE 13 DE JUNIO | M131: 134 | N131: 134 | O131: 09/01/2020 | P131: https://www.contratos.gov.co/consultas/detalleProceso.do?numConstancia=20-4-10281283
A132: =+A131+1 -> 131 | B132: 1042448135 | C132: GISELLA CAMILA ACOSTA SEGURA | D132: 0131 - 2020 | E132: SERVICIOS AMIGABLES | F132: 02 ENERO DE 2020 | G132: 31 ENERO DE 2020 | H132: 1500000 | I132: 1500000 | J132: LUIS GRANADOS GOMEZ | K132: COORD CENTRO SALUD | L132: CENTRO MANUELA BELTRAN | M132: 135 | N132: 135 | O132: 09/01/2020 | P132: https://www.contratos.gov.co/consultas/detalleProceso.do?numConstancia=20-4-10281288
A133: 132 | B133: 44156926 | C133: GLADYS CECILIA ESCALANTE FERRER | D133: 0132 - 2020 | E133: ODONTOLOGO | F133: 02 ENERO DE 2020 | G133: 31 ENERO DE 2020 | H133: 1900000 | I133: 1900000 | J133: DIANA MARTINEZ PACHECO | K133: COORD CENTRO DE SALUD | L133: CENTRO SALAMANCA | M133: 136 | N133: 136 | O133: 09/01/2020 | P133: https://www.contratos.gov.co/consultas/detalleProceso.do?numConstancia=20-4-10281298
A134: 133 | B134: 49555306 | C134: GLADYS DIAZ MARIN | D134: 0133 - 2020 | E134: AUXILIAR DE FACTURACION URGENCIA | F134: 02 ENERO DE 2020 | G134: 31 ENERO DE 2020 | H134: 1400000 | I134: 1400000 | J134: SANDRA MILENA SANMARTIN LOPEZ | K134: SUB GERENTE ADMINISTRATIVO | L134: CENTRO COSTA HERMOSA | M134: 137 | N134: 137 | O134: 09/01/2020 | P134: https://www.contratos.gov.co/consultas/detalleProceso.do?numConstancia=20-4-10281307
A135: 134 | B135: 1129513283 | C135: KARINE MILENA LEONES MARQUEZ | D135: 0134 - 2020 | E135: AUXILIAR DE FARMACIA | F135: 02 ENERO DE 2020 | G135: 31 ENERO DE 2020 | H135: 1905000 | I135: 1905000 | J135: BETTY LUX PERTUZ CHARRIS | K135: SUBGERENTE CIENTIFICO | L135: CIUDADELA METROPOLITANA | M135: 138 | N135: 138 | O135: 09/01/2020 | P135: https://www.contratos.gov.co/consultas/detalleProceso.do?numConstancia=20-4-10281316
A136: 135 | B136: 24341220 | C136: GLADYS OTALVARO BOTERO | D136: 0135 - 2020 | E136: AGENTE CALL CENTER | F136: 02 ENERO DE 2020 | G136: 31 ENERO DE 2020 | H136: 1378000 | I136: 1378000 | J136: BETTY LUX PERTUZ CHARRIS | K136: SUBGERENTE CIENTIFICO | L136: COLL-CENTER- CIUDADELA METROPOLITANA | M136: 139 | N136: 139 | O136: 09/01/2020 | P136: https://www.contratos.gov.co/consultas/detalleProceso.do?numConstancia=20-4-10281320
A137: 136 | B137: 22644596 | C137: GRACIELA BUSTOS RIVEROS | D137: 0136 - 2020 | E137: AUXILIAR ADMINISTRATIVO DE FACTURACIÒN | F137: 02 ENERO DE 2020 | G137: 31 ENERO DE 2020 | H137: 1600000 | I137: 1600000 | J137: SANDRA MILENA SANMARTIN LOPEZ | K137: SUB GERENTE ADMINISTRATIVO | L137: CENTRO COSTA HERMOSA | M137: 140 | N137: 140 | O137: 09/01/2020 | P137: https://www.contratos.gov.co/consultas/detalleProceso.do?numConstancia=20-4-10281327
A138: 137 | B138: 72203756 | C138: GUILLERMO DE JESUS MEDINA VASQUEZ | D138: 0137 - 2020 | E138: AUXILIAR DE FACTURACION | F138: 02 ENERO DE 2020 | G138: 31 ENERO DE 2020 | H138: 1500000 | I138: 1500000 | J138: SANDRA MILENA SANMARTIN LOPEZ | K138: SUB GERENTE ADMINISTRATIVO | L138: CENTRO COSTA HERMOSA | M138: 141 | N138: 141 | O138: 09/01/2020 | P138: https://www.contratos.gov.co/consultas/detalleProceso.do?numConstancia=20-4-10281335
A139: 138 | B139: 30568187 | C139: HAIDE MEJIA PRADO | D139: 0138 - 2020 | E139: AUXILIAR SERVICIOS GENERALES URGENCIA | F139: 02 ENERO DE 2020 | G139: 31 ENERO DE 2020 | H139: 1378000 | I139: 1378000 | J139: WILFRAN JIMENEZ DE LA PEÑA | K139: COORD CENTRO SALUD | L139: CIUDADELA METROPOLITANA | M139: 142 | N139: 142 | O139: 09/01/2020 | P139: https://www.contratos.gov.co/consultas/detalleProceso.do?numConstancia=20-4-10281348
A140: 139 | B140: 8767993 | C140: HAROLD MANUEL CABARCAS GONZALEZ | D140: 0139 - 2020 | E140: VACUNADORA | F140: 02 ENERO DE 2020 | G140: 31 ENERO DE 2020 | H140: 1400000 | I140: 1400000 | J140: NILSA ARIZA MARQUEZ | K140: COORDINADOR P Y P | L140: CENTRO MANUELA BELTRAN | M140: 143 | N140: 143 | O140: 09/01/2020 | P140: https://www.contratos.gov.co/consultas/detalleProceso.do?numConstancia=20-4-10281357
A141: 140 | B141: 44154490 | C141: HEIDY LUZ CARRILLO DIAZ | D141: 0140 - 2020 | E141: PAI WEB | F141: 02 ENERO DE 2020 | G141: 31 ENERO DE 2020 | H141: 1900000 | I141: 1900000 | J141: NILSA ARIZA MARQUEZ | K141: COORDINADOR P Y P | L141: ADMON COSTA HERMOSA | M141: 144 | N141: 144 | O141: 09/01/2020 | P141: https://www.contratos.gov.co/consultas/detalleProceso.do?numConstancia=20-4-10281371
A142: 141 | B142: 1042440903 | C142: HEIDY MARTINEZ GUTIERREZ | D142: 0141 - 2020 | E142: AUXILIAR DE FACTURACION URGENCIA | F142: 02 ENERO DE 2020 | G142: 31 ENERO DE 2020 | H142: 1400000 | I142: 1400000 | J142: SANDRA MILENA SANMARTIN LOPEZ | K142: SUB GERENTE ADMINISTRATIVO | L142: CENTRO COSTA HERMOSA | M142: 145 | N142: 145 | O142: 09/01/2020 | P142: https://www.contratos.gov.co/consultas/detalleProceso.do?numConstancia=20-4-10281382
A143: 142 | B143: 32872397 | C143: MONICA PATRICIA DOVALE GALLEGO | D143: 0142 - 2020 | E143: COORDINADOR SEGURIDAD Y SALUD TRABAJO | F143: 02 ENERO DE 2020 | G143: 31 ENERO DE 2020 | H143: 5800000 | I143: 5800000 | J143: FABIAN COLPAS | K143: JEFE TALENTO HUMANO | L143: ADMON COSTA HERMOSA | M143: 146 | N143: 146 | O143: 09/01/2020 | P143: https://www.contratos.gov.co/consultas/detalleProceso.do?numConstancia=20-4-10281391
A144: 143 | B144: 1143466577 | C144: HOLLMAN DE JESUS ARENAS VERGARA | D144: 0143 - 2020 | E144: ORIENTADOR | F144: 02 ENERO DE 2020 | G144: 31 ENERO DE 2020 | H144: 1270000 | I144: 1270000 | J144: SERGIO BOVEA MARIN | K144: COORD CENTRO SALUD | L144: CENTRO DE 13 DE JUNIO | M144: 147 | N144: 147 | O144: 09/01/2020 | P144: https://www.contratos.gov.co/consultas/detalleProceso.do?numConstancia=20-4-10281398
A145: 144 | B145: 33005079 | C145: IDALMIS NAVARRO ARROYO | D145: 0144 - 2020 | E145: AUXILIAR SERVICIOS GENERALES URGENCIA | F145: 02 ENERO DE 2020 | G145: 31 ENERO DE 2020 | H145: 1378000 | I145: 1378000 | J145: WILFRAN JIMENEZ DE LA PEÑA | K145: COORD CENTRO SALUD | L145: CIUDADELA METROPOLITANA | M145: 148 | N145: 148 | O145: 09/01/2020 | P145: https://www.contratos.gov.co/consultas/detalleProceso.do?numConstancia=20-4-10281408
A146: 145 | B146: 32861543 | C146: INGRID NAVARRO CARRILLO | D146: 0145 - 2020 | E146: FISIOTERAPEUTA | F146: 02 ENERO DE 2020 | G146: 31 ENERO DE 2020 | H146: 2100000 | I146: 2100000 | J146: SERGIO BOVEA MARIN | K146: COORD CENTRO SALUD | L146: CENTRO DE 13 DE JUNIO | M146: 149 | N146: 149 | O146: 09/01/2020 | P146: https://www.contratos.gov.co/consultas/detalleProceso.do?numConstancia=20-4-10281426
A147: 146 | B147: 32822389 | C147: ISABEL DE ALBA RODRIGUEZ | D147: 0146 - 2020 | E147: AUXILIAR DE FACTURACION | F147: 02 ENERO DE 2020 | G147: 31 ENERO DE 2020 | H147: 1300000 | I147: 1300000 | J147: SANDRA MILENA SANMARTIN LOPEZ | K147: SUB GERENTE ADMINISTRATIVO | L147: CENTRO COSTA HERMOSA | M147: 150 | N147: 150 | O147: 09/01/2020 | P147: https://www.contratos.gov.co/consultas/detalleProceso.do?numConstancia=20-4-10281457
A148: 147 | B148: 32619158 | C148: ISABEL HERRERA PACHECO | D148: 0147 - 2020 | E148: VACUNADORA- CUARTO FRIO | F148: 02 ENERO DE 2020 | G148: 31 ENERO DE 2020 | H148: 1600000 | I148: 1600000 | J148: NILSA ARIZA MARQUEZ | K148: COORDINADOR P Y P | L148: CENTRO DE 13 DE JUNIO | M148: 151 | N148: 151 | O148: 09/01/2020 | P148: https://www.contratos.gov.co/consultas/detalleProceso.do?numConstancia=20-4-10281466
A149: 148 | B149: 32816898 | C149: ISABEL OSORIO BARRIOS | D149: 0148 - 2020 | E149: VACUNADORA | F149: 02 ENERO DE 2020 | G149: 31 ENERO DE 2020 | H149: 1400000 | I149: 1400000 | J149: NILSA ARIZA MARQUEZ | K149: COORDINADOR P Y P | L149: CENTRO MANUELA BELTRAN | M149: 152 | N149: 152 | O149: 09/01/2020 | P149: https://www.contratos.gov.co/consultas/detalleProceso.do?numConstancia=20-4-10281475
A150: 149 | B150: 1042447104 | C150: IVOR ANDRES SANJUAN PEREZ | D150: 0149 - 2020 | E150: AUXILIAR RECURSOS FISICOS | F150: 02 ENERO DE 2020 | G150: 31 ENERO DE 2020 | H150: 1900000 | I150: 1900000 | J150: SANDRA MILENA SANMARTIN LOPEZ | K150: SUB GERENTE ADMINISTRATIVO | L150: CENTRO COSTA HERMOSA | M150: 153 | N150: 153 | O150: 09/01/2020 | P150: https://www.contratos.gov.co/consultas/detalleProceso.do?numConstancia=20-4-10281482
A151: 150 | B151: 8704436 | C151: JESUS DANIEL GUTIERREZ JIMENEZ | D151: 0150 - 2020 | E151: AUDITOR MEDICO DE DTPE - RECUPERACION DE LA SALUD | F151: 02 ENERO DE 2020 | G151: 31 ENERO DE 2020 | H151: 3000000 | I151: 3000000 | J151: BETTY LUX PERTUZ CHARRIS | M151: 154 | N151: 154 | O151: 09/01/2020 | P151: https://www.contratos.gov.co/consultas/detalleProceso.do?numConstancia=20-4-10281495
A152: 151 | B152: 72429926 | C152: JAIRO ESCOBAR ROMERO | D152: 0151- 2020 | E152: MEDICO DE URGENCIA | F152: 02 ENERO DE 2020 | G152: 31 ENERO DE 2020 | H152: 2560000 | I152: 2560000 | J152: BETTY LUX PERTUZ CHARRIS | K152: SUBGERENTE CIENTIFICO | L152: CENTRO DE 13 DE JUNIO | M152: 155 | N152: 155 | O152: 09/01/2020 | P152: https://www.contratos.gov.co/consultas/detalleProceso.do?numConstancia=20-4-10281571
A153: 152 | B153: 32703101 | C153: JANETH DEL CARMEN GUZMAN CANTILLO | D153: 0152- 2020 | E153: COORDINADOR DE FACTURACION | F153: 02 ENERO DE 2020 | G153: 31 ENERO DE 2020 | H153: 1600000 | I153: 1600000 | J153: YARELIS GUERRA CORREA | K153: COORD CENTRO SALUD | L153: CENTRO VILLA ESTADIO | M153: 156 | N153: 156 | O153: 09/01/2020 | P153: https://www.contratos.gov.co/consultas/detalleProceso.do?numConstancia=20-4-10281561
A154: 153 | B154: 26900583 | C154: JANETH JIMENEZ PEÑA | D154: 0153- 2020 | E154: TRABAJADORA SOCIAL | F154: 02 ENERO DE 2020 | G154: 31 ENERO DE 2020 | H154: 2500000 | I154: 2500000 | J154: CARLOS VISBAL JIMENEZ | K154: COORD CENTRO SALUD | L154: CENTRO COSTA HERMOSA | M154: 157 | N154: 157 | O154: 09/01/2020 | P154: https://www.contratos.gov.co/consultas/detalleProceso.do?numConstancia=20-4-10281562
A155: 154 | B155: 72072808 | C155: JARID BERDUGO COBO | D155: 0154- 2020 | E155: REFERENCIA Y CONTRAREFERENCIA | F155: 02 ENERO DE 2020 | G155: 31 ENERO DE 2020 | H155: 1480000 | I155: 1480000 | J155: WILFRAN JIMENEZ DE LA PEÑA | K155: COORD CENTRO SALUD | L155: CENTRO COSTA HERMOSA | M155: 158 | N155: 158 | O155: 09/01/2020 | P155: https://www.contratos.gov.co/consultas/detalleProceso.do?numConstancia=20-4-10281563
A156: 155 | B156: 8566485 | C156: JAVIER VLADIMIR CASTRO POVEA | D156: 0155- 2020 | E156: ABOGADO - TALENTO HUMANO | F156: 02 ENERO DE 2020 | G156: 31 ENERO DE 2020 | H156: 5800000 | I156: 5800000 | J156: FABIAN COLPAS | K156: JEFE TALENTO HUMANO | L156: CENTRO COSTA HERMOSA | M156: 159 | N156: 159 | O156: 09/01/2020 | P156: https://www.contratos.gov.co/consultas/detalleProceso.do?numConstancia=20-4-10281564
A157: 156 | B157: 1143453456 | C157: JEAN DAVID MONTALVO ZULETA | D157: 0156- 2020 | E157: AGENTE CALL CENTER | F157: 02 ENERO DE 2020 | G157: 31 ENERO DE 2020 | H157: 1378000 | I157: 1378000 | J157: BETTY LUX PERTUZ CHARRIS | K157: SUBGERENTE CIENTIFICO | L157: COLL-CENTER- CIUDADELA METROPOLITANA | M157: 160 | N157: 160 | O157: 09/01/2020 | P157: https://www.contratos.gov.co/consultas/detalleProceso.do?numConstancia=20-4-10281566
A158: 157 | B158: 32869709 | C158: JENECIS BARRERA MIRANDA | D158: 0157- 2020 | E158: ENFERMERA MATERNIDAD SEGURA | F158: 02 ENERO DE 2020 | G158: 31 ENERO DE 2020 | H158: 2300000 | I158: 2300000 | J158: NILSA ARIZA MARQUEZ | K158: COORDINADOR P Y P | L158: 13 DE JUNIO | M158: 161 | N158: 161 | O158: 09/01/2020 | P158: https://www.contratos.gov.co/consultas/detalleProceso.do?numConstancia=20-4-10281567
A159: 158 | B159: 8763571 | C159: HENRY ALFREDO PERTUZ GALVAN | D159: 0158- 2020 | E159: ORIENTADOR | F159: 02 ENERO DE 2020 | G159: 31 ENERO DE 2020 | H159: 1500000 | I159: 1500000 | J159: YARELIS GUERRA CORREA | K159: COORD CENTRO SALUD | L159: CENTRO VILLA ESTADIO | M159: 162 | N159: 162 | O159: 09/01/2020 | P159: https://www.contratos.gov.co/consultas/detalleProceso.do?numConstancia=20-4-10281568
A160: 159 | B160: 1042444925 | C160: JESUS MORENO DE ALBA | D160: 0159- 2020 | E160: AUXILIAR DE FACTURACION URGENCIA | F160: 02 ENERO DE 2020 | G160: 31 ENERO DE 2020 | H160: 1400000 | I160: 1400000 | J160: SERGIO BOVEA MARIN | K160: COORD CENTRO SALUD | L160: CENTRO DE 13 DE JUNIO | M160: 163 | N160: 163 | O160: 09/01/2020 | P160: https://www.contratos.gov.co/consultas/detalleProceso.do?numConstancia=20-4-10281569
A161: 160 | B161: 8740611 | C161: JESUS RECUERO LAMADRID | D161: 0160- 2020 | E161: ORIENTADOR | F161: 02 ENERO DE 2020 | G161: 31 ENERO DE 2020 | H161: 1270000 | I161: 1270000 | J161: WILFRAN JIMENEZ DE LA PEÑA | K161: COORD CENTRO SALUD | L161: CIUDADELA METROPOLITANA | M161: 164 | N161: 164 | O161: 09/01/2020 | P161: https://www.contratos.gov.co/consultas/detalleProceso.do?numConstancia=20-4-10281570
A162: 161 | B162: 44161544 | C162: JHOANA CATALINA SANDOVAL ESCORCIA | D162: 0161- 2020 | E162: ENFERMERA JEFE URGENCIAS | F162: 02 ENERO DE 2020 | G162: 31 ENERO DE 2020 | H162: 1900000 | I162: 1900000 | J162: SERGIO BOVEA MARIN | K162: COORD CENTRO SALUD | L162: CENTRO DE 13 DE JUNIO | M162: 165 | N162: 165 | O162: 09/01/2020 | P162: https://www.contratos.gov.co/consultas/detalleProceso.do?numConstancia=20-4-10281770
A163: 162 | B163: 1042444832 | C163: JHONNATAN ALFONSO DE LA HOZ BARRIOS | D163: 0162- 2020 | E163: MEDICO CONSULTA EXTERNA | F163: 02 ENERO DE 2020 | G163: 31 ENERO DE 2020 | H163: 4240000 | I163: 4240000 | J163: BETTY LUX PERTUZ CHARRIS | K163: SUBGERENTE CIENTIFICO | L163: CIUDADELA METROPOLITANA | M163: 166 | N163: 166 | O163: 09/01/2020 | P163: https://www.contratos.gov.co/consultas/detalleProceso.do?numConstancia=20-4-10281777
A164: 163 | B164: 72292086 | C164: JOHN JEREMY PERCYBROOKS BOLIVAR | D164: 0163- 2020 | E164: INGENIERO DE SISTEMAS | F164: 02 ENERO DE 2020 | G164: 31 ENERO DE 2020 | H164: 3000000 | I164: 3000000 | J164: NILSA ARIZA MARQUEZ | K164: COORDINADOR P Y P | L164: ADMON COSTA HERMOSA | M164: 167 | N164: 167 | O164: 09/01/2020 | P164: https://www.contratos.gov.co/consultas/detalleProceso.do?numConstancia=20-4-10281792
A165: 164 | B165: 1045706679 | C165: JONATHAN ACOSTA MORENO | D165: 0164- 2020 | E165: MEDICO DE URGENCIA | F165: 02 ENERO DE 2020 | G165: 31 ENERO DE 2020 | H165: 2560000 | I165: 2560000 | J165: BETTY LUX PERTUZ CHARRIS | K165: SUBGERENTE CIENTIFICO | L165: CIUDADELA METROPOLITANA | M165: 168 | N165: 168 | O165: 09/01/2020 | P165: https://www.contratos.gov.co/consultas/detalleProceso.do?numConstancia=20-4-10282011
A166: 165 | B166: 32695840 | C166: MARIA HERRERA CUADROS | D166: 0165- 2020 | E166: HIGIENISTA ORAL | F166: 02 ENERO DE 2020 | G166: 31 ENERO DE 2020 | H166: 2332000 | I166: 2332000 | J166: LUIS GRANADOS GOMEZ | K166: COORD CENTRO SALUD | L166: CENTRO MANUELA BELTRAN | M166: 169 | N166: 169 | O166: 09/01/2020 | P166: https://www.contratos.gov.co/consultas/detalleProceso.do?numConstancia=20-4-10293459
A167: 166 | B167: 8754502 | C167: JORGE DE LA HOZ DE LA HOZ | D167: 0166- 2020 | E167: ORIENTADOR | F167: 02 ENERO DE 2020 | G167: 31 ENERO DE 2020 | H167: 1270000 | I167: 1270000 | J167: DIANA MARTINEZ PACHECO | K167: COORD CENTRO DE SALUD | L167: CENTRO SALAMANCA | M167: 170 | N167: 170 | O167: 09/01/2020 | P167: https://www.contratos.gov.co/consultas/detalleProceso.do?numConstancia=20-4-10282025
A168: 167 | B168: 8776312 | C168: JORGE RIVERA MEZA | D168: 0167- 2020 | E168: AUXILIAR RECURSOS FISICOS | F168: 02 ENERO DE 2020 | G168: 31 ENERO DE 2020 | H168: 1900000 | I168: 1900000 | J168: SANDRA MILENA SANMARTIN LOPEZ | K168: SUB GERENTE ADMINISTRATIVO | L168: CENTRO COSTA HERMOSA | M168: 171 | N168: 171 | O168: 09/01/2020 | P168: https://www.contratos.gov.co/consultas/detalleProceso.do?numConstancia=20-4-10282028
A169: 168 | B169: 8704073 | C169: JOSE ALFREDO JIMENEZ CASTRO | D169: 0168- 2020 | E169: ORIENTADOR | F169: 02 ENERO DE 2020 | G169: 31 ENERO DE 2020 | H169: 1270000 | I169: 1270000 | J169: BETTY LUX PERTUZ CHARRIS | K169: SUBGERENTE CIENTIFICO | L169: CENTRO EL PARQUE | M169: 172 | N169: 172 | O169: 09/01/2020 | P169: https://www.contratos.gov.co/consultas/detalleProceso.do?numConstancia=20-4-10282033
A170: 169 | B170: 1140855812 | C170: JOSE DAVID NOGUERA SOTO | D170: 0169- 2020 | E170: GESTIÓN DOCUMENTAL CONTRATACIÓN | F170: 02 ENERO DE 2020 | G170: 31 ENERO DE 2020 | H170: 2300000 | I170: 2300000 | J170: ORNELLA FIORENTINO | K170: JEFE OFICINA JURIDICA | L170: ADMON COSTA HERMOSA | M170: 173 | N170: 173 | O170: 09/01/2020 | P170: https://www.contratos.gov.co/consultas/detalleProceso.do?numConstancia=20-4-10282037
A171: 170 | B171: 8532785 | C171: JOSE GUERRERO ORTIZ | D171: 0170- 2020 | E171: AGENTE CALL CENTER | F171: 02 ENERO DE 2020 | G171: 31 ENERO DE 2020 | H171: 1378000 | I171: 1378000 | J171: BETTY LUX PERTUZ CHARRIS | K171: SUBGERENTE CIENTIFICO | L171: COLL-CENTER- CIUDADELA METROPOLITANA | M171: 174 | N171: 174 | O171: 09/01/2020 | P171: https://www.contratos.gov.co/consultas/detalleProceso.do?numConstancia=20-4-10282038
A172: 171 | B172: 72434909 | C172: JOSE IGNACIO DE ALBA MARTINEZ | D172: 0171- 2020 | E172: AUXILIAR DE ARCHIVO | F172: 02 ENERO DE 2020 | G172: 31 ENERO DE 2020 | H172: 1500000 | I172: 1500000 | J172: SANDRA MILENA SANMARTIN LOPEZ | K172: SUB GERENTE ADMINISTRATIVO | L172: ARCHIVO CENTRAL | M172: 175 | N172: 175 | O172: 09/01/2020 | P172: https://www.contratos.gov.co/consultas/detalleProceso.do?numConstancia=20-4-10282044
A173: 172 | B173: 72271514 | C173: JOSE LUIS FLOREZ DIAZ | D173: 0172- 2020 | E173: AUXILIAR ADMINISTRATIVO VENTANILLA | F173: 02 ENERO DE 2020 | G173: 31 ENERO DE 2020 | H173: 1900000 | I173: 1900000 | J173: SANDRA MILENA SANMARTIN LOPEZ | K173: SUB GERENTE ADMINISTRATIVO | L173: COSTA HERMOSA | M173: 176 | N173: 176 | O173: 09/01/2020 | P173: https://www.contratos.gov.co/consultas/detalleProceso.do?numConstancia=20-4-10282045
A174: 173 | B174: 9143862 | C174: JOSE LUIS LEAL CORREA | D174: 0173- 2020 | E174: AUXILIAR DE FARMACIA | F174: 02 ENERO DE 2020 | G174: 31 ENERO DE 2020 | H174: 1270000 | I174: 1270000 | J174: BETTY LUX PERTUZ CHARRIS | K174: SUBGERENTE CIENTIFICO | L174: FARMACIA COSTA HERMOSA | M174: 177 | N174: 177 | O174: 09/01/2020 | P174: https://www.contratos.gov.co/consultas/detalleProceso.do?numConstancia=20-4-10282046
A175: 174 | B175: 72202548 | C175: WILBER CASTRO RIOS | D175: 0174- 2020 | E175: MENSAJERO | F175: 02 ENERO DE 2020 | G175: 31 ENERO DE 2020 | H175: 2000000 | I175: 2000000 | J175: ORNELLA FIORENTINO | K175: JEFE DE JURIDICA | L175: ADMON COSTA HERMOSA | M175: 178 | N175: 178 | O175: 09/01/2020 | P175: https://www.contratos.gov.co/consultas/detalleProceso.do?numConstancia=20-4-10282059
A176: 175 | B176: 72165796 | C176: JOSE SALVADOR FERNANDEZ RODELO | D176: 0175- 2020 | E176: ORIENTADOR | F176: 02 ENERO DE 2020 | G176: 31 ENERO DE 2020 | H176: 1270000 | I176: 1270000 | J176: WILFRAN JIMENEZ DE LA PEÑA | K176: COORD CENTRO SALUD | L176: CIUDADELA METROPOLITANA | M176: 179 | N176: 179 | O176: 09/01/2020 | P176: https://www.contratos.gov.co/consultas/detalleProceso.do?numConstancia=20-4-10282065
A177: 176 | B177: 32810582 | C177: JOSEFINA CARO VITOLA | D177: 0176- 2020 | E177: AUXILIAR DE ENFERMERIA URGENCIAS | F177: 02 ENERO DE 2020 | G177: 31 ENERO DE 2020 | H177: 1378000 | I177: 1378000 | J177: SERGIO BOVEA MARIN | K177: COORD CENTRO SALUD | L177: CENTRO DE 13 DE JUNIO | M177: 180 | N177: 180 | O177: 09/01/2020 | P177: https://www.contratos.gov.co/consultas/detalleProceso.do?numConstancia=20-4-10282071
A178: 177 | B178: 1042442139 | C178: JOSHIKY ESTHER AHUMADA PACHECO | D178: 0177- 2020 | E178: ENFERMERA JEFE CONSULTA EXTERNA | F178: 02 ENERO DE 2020 | G178: 31 ENERO DE 2020 | H178: 2300000 | I178: 2300000 | J178: NILSA ARIZA MARQUEZ | K178: COORDINADOR P Y P | L178: MANUELA BELTRAN | M178: 181 | N178: 181 | O178: 09/01/2020 | P178: https://www.contratos.gov.co/consultas/detalleProceso.do?numConstancia=20-4-10282089
A179: 178 | B179: 72242552 | C179: JUAN CAMILO CASTILLO ARIZA | D179: 0178- 2020 | E179: MEDICO CONSULTA EXTERNA | F179: 02 ENERO DE 2020 | G179: 31 ENERO DE 2020 | H179: 2120000 | I179: 2120000 | J179: CARLOS VISBAL JIMENEZ | K179: COORD CENTRO SALUD | L179: CENTRO COSTA HERMOSA | M179: 182 | N179: 182 | O179: 09/01/2020 | P179: https://www.contratos.gov.co/consultas/detalleProceso.do?numConstancia=20-4-10282110
A180: 179 | B180: 72095954 | C180: JUAN CARLOS BARROS CARO | D180: 0179- 2020 | E180: ASESOR GERENCIA | F180: 02 ENERO DE 2020 | G180: 31 ENERO DE 2020 | H180: 4500000 | I180: 4500000 | J180: ROSA MADERA | K180: GERENTE | L180: CENTRO COSTA HERMOSA | M180: 183 | N180: 183 | O180: 09/01/2020 | P180: https://www.contratos.gov.co/consultas/detalleProceso.do?numConstancia=20-4-10282130
A181: 180 | B181: 72278234 | C181: JUAN GABRIEL FRANCO PRENT | D181: 0180- 2020 | E181: COORDINADOR DE FACTURACION | F181: 02 ENERO DE 2020 | G181: 31 ENERO DE 2020 | H181: 4375000 | I181: 4375000 | J181: SANDRA MILENA SANMARTIN LOPEZ | K181: SUB GERENTE ADMINISTRATIVO | L181: CENTRO COSTA HERMOSA | M181: 184 | N181: 184 | O181: 09/01/2020 | P181: https://www.contratos.gov.co/consultas/detalleProceso.do?numConstancia=20-4-10282135
A182: 181 | B182: 72159018 | C182: JUAN PERALTA QUINTERO | D182: 0181- 2020 | E182: COORDINADOR AMBIENTAL | F182: 02 ENERO DE 2020 | G182: 31 ENERO DE 2020 | H182: 4000000 | I182: 4000000 | J182: SANDRA MILENA SANMARTIN LOPEZ | K182: SUB GERENTE ADMINISTRATIVO | L182: CENTRO COSTA HERMOSA | M182: 185 | N182: 185 | O182: 09/01/2020 | P182: https://www.contratos.gov.co/consultas/detalleProceso.do?numConstancia=20-4-10282141
A183: 182 | B183: 8667553 | C183: JUAN SANDOVAL BOLIVAR | D183: 0182- 2020 | E183: ODONTOLOGO | F183: 02 ENERO DE 2020 | G183: 31 ENERO DE 2020 | H183: 1900000 | I183: 1900000 | J183: SERGIO BOVEA MARIN | K183: COORD CENTRO SALUD | L183: CENTRO DE 13 DE JUNIO | M183: 186 | N183: 186 | O183: 09/01/2020 | P183: https://www.contratos.gov.co/consultas/detalleProceso.do?numConstancia=20-4-10282149
A184: 183 | B184: 32771594 | C184: JUANA DIAZ CARABALLO | D184: 0183- 2020 | E184: AUXILIAR DE ENFERMERIA URGENCIAS | F184: 02 ENERO DE 2020 | G184: 31 ENERO DE 2020 | H184: 1378000 | I184: 1378000 | J184: SERGIO BOVEA MARIN | K184: COORD CENTRO SALUD | L184: CENTRO DE 13 DE JUNIO | M184: 187 | N184: 187 | O184: 09/01/2020 | P184: https://www.contratos.gov.co/consultas/detalleProceso.do?numConstancia=20-4-10282157
A185: 184 | B185: 26853643 | C185: JUDITH CHARRIS MACHADO | D185: 0184- 2020 | E185: ENFERMERA JEFE URGENCIAS | F185: 02 ENERO DE 2020 | G185: 31 ENERO DE 2020 | H185: 1900000 | I185: 1900000 | J185: WILFRAN JIMENEZ DE LA PEÑA | K185: COORD CENTRO SALUD | L185: CIUDADELA METROPOLITANA | M185: 188 | N185: 188 | O185: 09/01/2020 | P185: https://www.contratos.gov.co/consultas/detalleProceso.do?numConstancia=20-4-10282166
A186: 185 | B186: 32814077 | C186: JUDITH TORRES CASTILLO | D186: 0185- 2020 | E186: COORDINADOR DE FACTURACION | F186: 02 ENERO DE 2020 | G186: 31 ENERO DE 2020 | H186: 1600000 | I186: 1600000 | J186: BETTY LUX PERTUZ CHARRIS | K186: SUBGERENTE CIENTIFICO | L186: CENTRO EL PARQUE | M186: 189 | N186: 189 | O186: 09/01/2020 | P186: https://www.contratos.gov.co/consultas/detalleProceso.do?numConstancia=20-4-10282181
A187: 186 | B187: 32712489 | C187: JULIA ESTELLA RIVERA TREJOS | D187: 0186- 2020 | E187: MEDICO DE URGENCIA | F187: 02 ENERO DE 2020 | G187: 31 ENERO DE 2020 | H187: 2560000 | I187: 2560000 | J187: BETTY LUX PERTUZ CHARRIS | K187: SUBGERENTE CIENTIFICO | L187: CIUDADELA METROPOLITANA | M187: 190 | N187: 190 | O187: 09/01/2020 | P187: https://www.contratos.gov.co/consultas/detalleProceso.do?numConstancia=20-4-10282199
A188: 187 | B188: 1042443708 | C188: JULIETH ANDREA CAMACHO CHACON | D188: 0187- 2020 | E188: ENFERMERA JEFE | F188: 02 ENERO DE 2020 | G188: 31 ENERO DE 2020 | H188: 2300000 | I188: 2300000 | J188: NILSA ARIZA MARQUEZ | K188: COORDINADOR P Y P | L188: COSTA HERMOSA | M188: 191 | N188: 191 | O188: 09/01/2020 | P188: https://www.contratos.gov.co/consultas/detalleProceso.do?numConstancia=20-4-10282221
A189: 188 | B189: 7438585 | C189: NESTOR CHARRIS MARIN | D189: 0188- 2020 | E189: ORIENTADOR | F189: 02 ENERO DE 2020 | G189: 31 ENERO DE 2020 | H189: 1270000 | I189: 1270000 | J189: SANDRA MILENA SANMARTIN LOPEZ | K189: SUB GERENTE ADMINISTRATIVO | L189: CENTRO COSTA HERMOSA | M189: 192 | N189: 192 | O189: 09/01/2020 | P189: https://www.contratos.gov.co/consultas/detalleProceso.do?numConstancia=20-4-10282207
A190: 189 | B190: 22468261 | C190: KANYA MALLERLY BERNAL BECERRA | D190: 0189- 2020 | E190: AUXILIAR ADMINISTRATIVO - SUBGERENCIA ADMINISTRATIVA | F190: 02 ENERO DE 2020 | G190: 31 ENERO DE 2020 | H190: 2200000 | I190: 2200000 | J190: SANDRA MILENA SANMARTIN LOPEZ | K190: SUB GERENTE ADMINISTRATIVO | L190: CENTRO COSTA HERMOSA | M190: 193 | N190: 193 | O190: 09/01/2020 | P190: https://www.contratos.gov.co/consultas/detalleProceso.do?numConstancia=20-4-10282234
A191: 190 | B191: 1043841968 | C191: KAREN DAYANA FONSECA MUÑOZ | D191: 0190- 2020 | E191: MEDICO DE URGENCIA | F191: 02 ENERO DE 2020 | G191: 31 ENERO DE 2020 | H191: 2560000 | I191: 2560000 | J191: SERGIO BOVEA MARIN | K191: COORD CENTRO SALUD | L191: CENTRO DE 13 DE JUNIO | M191: 194 | N191: 194 | O191: 09/01/2020 | P191: https://www.contratos.gov.co/consultas/detalleProceso.do?numConstancia=20-4-10282243
A192: 191 | B192: 1129508435 | C192: KAREN MARIA RODRIGUEZ MOVILLA | D192: 0191- 2020 | E192: AUXILIAR DE FARMACIA | F192: 02 ENERO DE 2020 | G192: 31 ENERO DE 2020 | H192: 1270000 | I192: 1270000 | J192: BETTY LUX PERTUZ CHARRIS | K192: SUBGERENTE CIENTIFICO | L192: ADMON -FARMACIA | M192: 195 | N192: 195 | O192: 09/01/2020 | P192: https://www.contratos.gov.co/consultas/detalleProceso.do?numConstancia=20-4-10282261
A193: 192 | B193: 55313269 | C193: KAREN MARTINEZ BRANGO | D193: 0192- 2020 | E193: AUXILIAR ENFERMERIA URGENCIAS | F193: 02 ENERO DE 2020 | G193: 31 ENERO DE 2020 | H193: 1378000 | I193: 1378000 | J193: SERGIO BOVEA MARIN | K193: COORD CENTRO SALUD | L193: CENTRO DE 13 DE JUNIO | M193: 196 | N193: 196 | O193: 09/01/2020 | P193: https://www.contratos.gov.co/consultas/detalleProceso.do?numConstancia=20-4-10282277
A194: 193 | B194: 1083433669 | C194: KARLA MARIA SUAREZ MUÑOZ | D194: 0193- 2020 | E194: AUXILIAR DE ENFERMERIA URGENCIAS | F194: 02 ENERO DE 2020 | G194: 31 ENERO DE 2020 | H194: 1378000 | I194: =H194*1 -> 1378000 | J194: WILFRAN JIMENEZ DE LA PEÑA | K194: COORD CENTRO SALUD | L194: CIUDADELA METROPOLITANA | M194: 197 | N194: 197 | O194: 09/01/2020 | P194: https://www.contratos.gov.co/consultas/detalleProceso.do?numConstancia=20-4-10282284
A195: 194 | B195: 22534402 | C195: KATERINE RUA SUAREZ | D195: 0194- 2020 | E195: AUXILIAR DE FACTURACION URGENCIA | F195: 02 ENERO DE 2020 | G195: 31 ENERO DE 2020 | H195: 1400000 | I195: 1400000 | J195: SANDRA MILENA SANMARTIN LOPEZ | K195: SUB GERENTE ADMINISTRATIVO | L195: CENTRO COSTA HERMOSA | M195: 198 | N195: 198 | O195: 09/01/2020 | P195: https://www.contratos.gov.co/consultas/detalleProceso.do?numConstancia=20-4-10282300
A196: =+A195+1 -> 195 | B196: 1042429330 | C196: KATHERINE BALZA SALAS | D196: 0195- 2020 | E196: AUXILIAR DE ARCHIVO | F196: 02 ENERO DE 2020 | G196: 31 ENERO DE 2020 | H196: 1500000 | I196: 1500000 | J196: SANDRA MILENA SANMARTIN LOPEZ | K196: SUB GERENTE ADMINISTRATIVO | L196: ARCHIVO CENTRAL | M196: 199 | N196: 199 | O196: 09/01/2020 | P196: https://www.contratos.gov.co/consultas/detalleProceso.do?numConstancia=20-4-10282313
A197: 196 | B197: 22804794 | C197: KATHERINE GUERRERO SEPULVEDA | D197: 0196- 2020 | E197: ABOGADO EXTERNO - CONTRATACION | F197: 02 ENERO DE 2020 | G197: 31 ENERO DE 2020 | H197: 5800000 | I197: 5800000 | J197: ORNELLA FIORENTINO | K197: JEFE OFICINA JURIDICA | L197: CENTRO COSTA HERMOSA | M197: 200 | N197: 200 | O197: 09/01/2020 | P197: https://www.contratos.gov.co/consultas/detalleProceso.do?numConstancia=20-4-10282324
A198: 197 | B198: 32894662 | C198: KATTY MACIAS PONTON | D198: 0197- 2020 | E198: MEDICO DE URGENCIA | F198: 02 ENERO DE 2020 | G198: 31 ENERO DE 2020 | H198: 2560000 | I198: 2560000 | J198: WILFRAN JIMENEZ DE LA PEÑA | K198: COORD CENTRO SALUD | L198: CIUDADELA METROPOLITANA | M198: 201 | N198: 201 | O198: 09/01/2020 | P198: https://www.contratos.gov.co/consultas/detalleProceso.do?numConstancia=20-4-10282337
A199: 198 | B199: 55301340 | C199: KATYA LILIANA NORIEGA BARRIOS | D199: 0198- 2020 | E199: AUXILIAR DE ENFERMERIA URGENCIAS | F199: 02 ENERO DE 2020 | G199: 31 ENERO DE 2020 | H199: 1378000 | I199: 1378000 | J199: SERGIO BOVEA MARIN | K199: COORD CENTRO SALUD | L199: CENTRO DE 13 DE JUNIO | M199: 202 | N199: 202 | O199: 09/01/2020 | P199: https://www.contratos.gov.co/consultas/detalleProceso.do?numConstancia=20-4-10282357
A200: 199 | B200: 22642874 | C200: KELLYS JOHANA URUETA SUAREZ | D200: 0199- 2020 | E200: AUXILIAR SERVICIOS GENERALES URGENCIA | F200: 02 ENERO DE 2020 | G200: 31 ENERO DE 2020 | H200: 1378000 | I200: 1378000 | J200: WILFRAN JIMENEZ DE LA PEÑA | K200: COORD CENTRO SALUD | L200: CIUDADELA METROPOLITANA | M200: 203 | N200: 203 | O200: 09/01/2020 | P200: https://www.contratos.gov.co/consultas/detalleProceso.do?numConstancia=20-4-10282369
... 255 more rows
